Department family,Entity,Date,Expense type,Expense area,Supplier,Transaction number,Amount
Department of Health,Leicestershire Partnership NHS Trust,01/11/21,Computer Software,HIS Infrastructure,PHOENIX SOFTWARE LTD,OP/I912241,26730.00
Department of Health,Leicestershire Partnership NHS Trust,02/11/21,WIP Project Not in BS - Information Technology,Work in Progress,SYNANETICS LTD,INV-00336,34200.00
Department of Health,Leicestershire Partnership NHS Trust,02/11/21,Unitary Payment,"The Agnes Unit (AKA Assessment and Treatment Centre) (P85, LPT)",ARDEN PARTNERSHIP (LEICESTER),SI0080,121261.97
Department of Health,Leicestershire Partnership NHS Trust,03/11/21,External Data Processing / Storage,Records & information Governance,H COATES LTD/TA C&V DATA,4007029,30858.62
Department of Health,Leicestershire Partnership NHS Trust,03/11/21,GP IT Expenditure,Area Team,DELL COMPUTERS,7402756412,28320.00
Department of Health,Leicestershire Partnership NHS Trust,04/11/21,NURSE - BAND 2 - AGENCY,Beechwood Ward,HCL NURSING,HNSI0000837,5166.13
Department of Health,Leicestershire Partnership NHS Trust,04/11/21,NURSE - BAND 5 - AGENCY,Beechwood Ward,HCL NURSING,HNSI0000837,1285.13
Department of Health,Leicestershire Partnership NHS Trust,04/11/21,NURSE - BAND 5 - AGENCY,City Planned Care - East,HCL NURSING,HNSI0000837,11463.39
Department of Health,Leicestershire Partnership NHS Trust,04/11/21,NURSE - BAND 5 - AGENCY,City Planned Care - West,HCL NURSING,HNSI0000837,15856.65
Department of Health,Leicestershire Partnership NHS Trust,04/11/21,NURSE - BAND 2 - AGENCY,Clarendon Ward,HCL NURSING,HNSI0000837,4743.74
Department of Health,Leicestershire Partnership NHS Trust,04/11/21,NURSE - BAND 5 - AGENCY,Clarendon Ward,HCL NURSING,HNSI0000837,13062.07
Department of Health,Leicestershire Partnership NHS Trust,04/11/21,NURSE - BAND 2 - AGENCY,Coalville Snibston Ward,HCL NURSING,HNSI0000837,3449.81
Department of Health,Leicestershire Partnership NHS Trust,04/11/21,NURSE - BAND 5 - AGENCY,Coalville Snibston Ward,HCL NURSING,HNSI0000837,1311.02
Department of Health,Leicestershire Partnership NHS Trust,04/11/21,NURSE - BAND 2 - AGENCY,Coalville Ward 2,HCL NURSING,HNSI0000837,1947.24
Department of Health,Leicestershire Partnership NHS Trust,04/11/21,NURSE - BAND 5 - AGENCY,Coalville Ward 2,HCL NURSING,HNSI0000837,2380.14
Department of Health,Leicestershire Partnership NHS Trust,04/11/21,NURSE - BAND 2 - AGENCY,Dalgliesh Ward,HCL NURSING,HNSI0000837,2355.67
Department of Health,Leicestershire Partnership NHS Trust,04/11/21,NURSE - BAND 5 - AGENCY,Dalgliesh Ward,HCL NURSING,HNSI0000837,329.84
Department of Health,Leicestershire Partnership NHS Trust,04/11/21,NURSE - BAND 2 - AGENCY,H&B Comm Hosp East Ward,HCL NURSING,HNSI0000837,2554.72
Department of Health,Leicestershire Partnership NHS Trust,04/11/21,NURSE - BAND 5 - AGENCY,H&B Comm Hosp East Ward,HCL NURSING,HNSI0000837,3645.30
Department of Health,Leicestershire Partnership NHS Trust,04/11/21,NURSE - BAND 2 - AGENCY,H&B Comm Hosp North Ward,HCL NURSING,HNSI0000837,4317.49
Department of Health,Leicestershire Partnership NHS Trust,04/11/21,NURSE - BAND 5 - AGENCY,H&B Comm Hosp North Ward,HCL NURSING,HNSI0000837,5066.04
Department of Health,Leicestershire Partnership NHS Trust,04/11/21,NURSE - BAND 2 - AGENCY,Lough Swithland Ward,HCL NURSING,HNSI0000837,569.28
Department of Health,Leicestershire Partnership NHS Trust,04/11/21,NURSE - BAND 5 - AGENCY,Lough Swithland Ward,HCL NURSING,HNSI0000837,571.85
Department of Health,Leicestershire Partnership NHS Trust,04/11/21,NURSE - BAND 2 - AGENCY,Non Recurrent 2012/13,HCL NURSING,HNSI0000837,419.01
Department of Health,Leicestershire Partnership NHS Trust,04/11/21,NURSE - BAND 2 - AGENCY,Rutland Ward Nursing,HCL NURSING,HNSI0000837,963.34
Department of Health,Leicestershire Partnership NHS Trust,04/11/21,NURSE - BAND 5 - AGENCY,Rutland Ward Nursing,HCL NURSING,HNSI0000837,1191.19
Department of Health,Leicestershire Partnership NHS Trust,04/11/21,NURSE - BAND 2 - AGENCY,St Lukes Stroke Ward,HCL NURSING,HNSI0000837,1322.06
Department of Health,Leicestershire Partnership NHS Trust,04/11/21,NURSE - BAND 5 - AGENCY,St Lukes Stroke Ward,HCL NURSING,HNSI0000837,449.54
Department of Health,Leicestershire Partnership NHS Trust,04/11/21,NURSE - BAND 2 - AGENCY,St Lukes Ward 3,HCL NURSING,HNSI0000837,817.61
Department of Health,Leicestershire Partnership NHS Trust,04/11/21,NURSE - BAND 5 - AGENCY,St Lukes Ward 3,HCL NURSING,HNSI0000837,2070.74
Department of Health,Leicestershire Partnership NHS Trust,04/11/21,NURSE - BAND 2 - AGENCY,Wakerley Ward,HCL NURSING,HNSI0000837,3836.03
Department of Health,Leicestershire Partnership NHS Trust,04/11/21,NURSE - BAND 5 - AGENCY,Wakerley Ward,HCL NURSING,HNSI0000837,5815.05
Department of Health,Leicestershire Partnership NHS Trust,04/11/21,WIP Project Not in BS - Buildings excl Dwellings,Work in Progress,TILBURY DOUGLAS CONSTRUCTION LTD,21110030,34376.93
Department of Health,Leicestershire Partnership NHS Trust,04/11/21,WIP Project Not in BS - Buildings excl Dwellings,Work in Progress,TILBURY DOUGLAS CONSTRUCTION LTD,21110070,89834.12
Department of Health,Leicestershire Partnership NHS Trust,04/11/21,WIP Project Not in BS - Buildings excl Dwellings,Work in Progress,TILBURY DOUGLAS CONSTRUCTION LTD,21110031,65184.20
Department of Health,Leicestershire Partnership NHS Trust,04/11/21,Nurse - Band 6 -Agency,AMH - Central Access Point,HCL NURSING,HNSCM000548,-721.83
Department of Health,Leicestershire Partnership NHS Trust,04/11/21,Nurse - Band 6 -Agency,Adult City East CMHT - Merlyn Vaz,HCL NURSING,HNSCM000548,-869.64
Department of Health,Leicestershire Partnership NHS Trust,04/11/21,Nurse - Band 6 -Agency,Adult County Charnwood CMHT - Loughborough Base,HCL NURSING,HNSCM000548,-688.50
Department of Health,Leicestershire Partnership NHS Trust,04/11/21,NURSE - BAND 2 - AGENCY,Agnes Unit Management,HCL NURSING,HNSCM000548,-789.53
Department of Health,Leicestershire Partnership NHS Trust,04/11/21,NURSE - BAND 5 - AGENCY,Agnes Unit Management,HCL NURSING,HNSCM000548,-1827.19
Department of Health,Leicestershire Partnership NHS Trust,04/11/21,NURSE - BAND 2 - AGENCY,Aston Ward (Bradgate Unit),HCL NURSING,HNSCM000548,-340.93
Department of Health,Leicestershire Partnership NHS Trust,04/11/21,NURSE - BAND 2 - AGENCY,Beaumont Ward - Bradgate Unit,HCL NURSING,HNSCM000548,-1011.41
Department of Health,Leicestershire Partnership NHS Trust,04/11/21,NURSE - BAND 2 - AGENCY,Beechwood Ward,HCL NURSING,HNSCM000548,-1126.95
Department of Health,Leicestershire Partnership NHS Trust,04/11/21,NURSE - BAND 5 - AGENCY,Beechwood Ward,HCL NURSING,HNSCM000548,-1086.70
Department of Health,Leicestershire Partnership NHS Trust,04/11/21,NURSE - BAND 2 - AGENCY,Belvoir Psychiatric Intensive Care Unit,HCL NURSING,HNSCM000548,-122.89
Department of Health,Leicestershire Partnership NHS Trust,04/11/21,NURSE - BAND 2 - AGENCY,CAMHS Inpatient Service,HCL NURSING,HNSCM000548,-3522.39
Department of Health,Leicestershire Partnership NHS Trust,04/11/21,NURSE - BAND 5 - AGENCY,CAMHS Inpatient Service,HCL NURSING,HNSCM000548,-390.15
Department of Health,Leicestershire Partnership NHS Trust,04/11/21,Nurse - Band 6 -Agency,CAMHS Waiting List Monies,HCL NURSING,HNSCM000548,-1234.61
Department of Health,Leicestershire Partnership NHS Trust,04/11/21,Nurse - Band 6 -Agency,CAMHS Young Peoples Team,HCL NURSING,HNSCM000548,0.00
Department of Health,Leicestershire Partnership NHS Trust,04/11/21,NURSE - BAND 2 - AGENCY,Cedar (Willows),HCL NURSING,HNSCM000548,-269.49
Department of Health,Leicestershire Partnership NHS Trust,04/11/21,NURSE - BAND 5 - AGENCY,City Planned Care - East,HCL NURSING,HNSCM000548,-355.08
Department of Health,Leicestershire Partnership NHS Trust,04/11/21,NURSE - BAND 5 - AGENCY,City Planned Care - West,HCL NURSING,HNSCM000548,-2548.03
Department of Health,Leicestershire Partnership NHS Trust,04/11/21,NURSE - BAND 2 - AGENCY,Clarendon Ward,HCL NURSING,HNSCM000548,-240.34
Department of Health,Leicestershire Partnership NHS Trust,04/11/21,NURSE - BAND 5 - AGENCY,Clarendon Ward,HCL NURSING,HNSCM000548,-2005.43
Department of Health,Leicestershire Partnership NHS Trust,04/11/21,NURSE - BAND 2 - AGENCY,Coalville Snibston Ward,HCL NURSING,HNSCM000548,-527.22
Department of Health,Leicestershire Partnership NHS Trust,04/11/21,NURSE - BAND 5 - AGENCY,Coalville Snibston Ward,HCL NURSING,HNSCM000548,-514.85
Department of Health,Leicestershire Partnership NHS Trust,04/11/21,NURSE - BAND 5 - AGENCY,Coalville Ward 2,HCL NURSING,HNSCM000548,-43.20
Department of Health,Leicestershire Partnership NHS Trust,04/11/21,NURSE - BAND 2 - AGENCY,Coleman Ward,HCL NURSING,HNSCM000548,-1310.52
Department of Health,Leicestershire Partnership NHS Trust,04/11/21,NURSE - BAND 5 - AGENCY,Coleman Ward,HCL NURSING,HNSCM000548,-1398.75
Department of Health,Leicestershire Partnership NHS Trust,04/11/21,NURSE - BAND 2 - AGENCY,Dalgliesh Ward,HCL NURSING,HNSCM000548,-1334.85
Department of Health,Leicestershire Partnership NHS Trust,04/11/21,NURSE - BAND 5 - AGENCY,Dalgliesh Ward,HCL NURSING,HNSCM000548,-609.86
Department of Health,Leicestershire Partnership NHS Trust,04/11/21,NURSE - BAND 2 - AGENCY,Griffin Ward (HPC),HCL NURSING,HNSCM000548,-521.42
Department of Health,Leicestershire Partnership NHS Trust,04/11/21,NURSE - BAND 2 - AGENCY,Gwendolen Ward,HCL NURSING,HNSCM000548,-233.14
Department of Health,Leicestershire Partnership NHS Trust,04/11/21,NURSE - BAND 2 - AGENCY,H&B Comm Hosp East Ward,HCL NURSING,HNSCM000548,-324.93
Department of Health,Leicestershire Partnership NHS Trust,04/11/21,NURSE - BAND 2 - AGENCY,H&B Comm Hosp North Ward,HCL NURSING,HNSCM000548,-1556.24
Department of Health,Leicestershire Partnership NHS Trust,04/11/21,NURSE - BAND 5 - AGENCY,H&B Comm Hosp North Ward,HCL NURSING,HNSCM000548,-514.85
Department of Health,Leicestershire Partnership NHS Trust,04/11/21,NURSE - BAND 5 - AGENCY,Heather Ward,HCL NURSING,HNSCM000548,-659.67
Department of Health,Leicestershire Partnership NHS Trust,04/11/21,NURSE - BAND 2 - AGENCY,Kirby Ward,HCL NURSING,HNSCM000548,-311.65
Department of Health,Leicestershire Partnership NHS Trust,04/11/21,NURSE - BAND 5 - AGENCY,Kirby Ward,HCL NURSING,HNSCM000548,-57.00
Department of Health,Leicestershire Partnership NHS Trust,04/11/21,NURSE - BAND 5 - AGENCY,Langley Ward ED Inpatient Service,HCL NURSING,HNSCM000548,-266.62
Department of Health,Leicestershire Partnership NHS Trust,04/11/21,NURSE - BAND 5 - AGENCY,Mill Lodge,HCL NURSING,HNSCM000548,-581.04
Department of Health,Leicestershire Partnership NHS Trust,04/11/21,NURSE - BAND 2 - AGENCY,Phoenix Ward (HPC),HCL NURSING,HNSCM000548,-503.05
Department of Health,Leicestershire Partnership NHS Trust,04/11/21,NURSE - BAND 5 - AGENCY,Rutland Ward Nursing,HCL NURSING,HNSCM000548,-364.54
Department of Health,Leicestershire Partnership NHS Trust,04/11/21,NURSE - BAND 2 - AGENCY,Wakerley Ward,HCL NURSING,HNSCM000548,-1237.02
Department of Health,Leicestershire Partnership NHS Trust,04/11/21,NURSE - BAND 5 - AGENCY,Wakerley Ward,HCL NURSING,HNSCM000548,-469.65
Department of Health,Leicestershire Partnership NHS Trust,04/11/21,WIP Project Not in BS - Buildings excl Dwellings,Work in Progress,TILBURY DOUGLAS CONSTRUCTION LTD,21110033,31513.43
Department of Health,Leicestershire Partnership NHS Trust,04/11/21,WIP Project Not in BS - Buildings excl Dwellings,Work in Progress,TILBURY DOUGLAS CONSTRUCTION LTD,21110034,35127.64
Department of Health,Leicestershire Partnership NHS Trust,04/11/21,WIP Project Not in BS - Buildings excl Dwellings,Work in Progress,TILBURY DOUGLAS CONSTRUCTION LTD,21110035,104350.79
Department of Health,Leicestershire Partnership NHS Trust,04/11/21,WIP Project Not in BS - Buildings excl Dwellings,Work in Progress,TILBURY DOUGLAS CONSTRUCTION LTD,21110036,126245.81
Department of Health,Leicestershire Partnership NHS Trust,04/11/21,WIP Project Not in BS - Buildings excl Dwellings,Work in Progress,TILBURY DOUGLAS CONSTRUCTION LTD,21110013,47206.76
Department of Health,Leicestershire Partnership NHS Trust,04/11/21,WIP Project Not in BS - Buildings excl Dwellings,Work in Progress,TILBURY DOUGLAS CONSTRUCTION LTD,21110027,134838.90
Department of Health,Leicestershire Partnership NHS Trust,04/11/21,Healthcare Services / Recharges from Non-NHS Bodies,AMH - Central Access Point,TURNING POINT,SI-TPS-00036176,21486.83
Department of Health,Leicestershire Partnership NHS Trust,05/11/21,GP IT Expenditure,Area Team,DELL COMPUTERS,7402756749,28320.00
Department of Health,Leicestershire Partnership NHS Trust,05/11/21,Nurse - Band 6 -Agency,AMH - Central Access Point,HCL NURSING,HNSI0000841,2528.72
Department of Health,Leicestershire Partnership NHS Trust,05/11/21,Nurse - Band 6 -Agency,Adult City East CMHT - Merlyn Vaz,HCL NURSING,HNSI0000841,846.49
Department of Health,Leicestershire Partnership NHS Trust,05/11/21,Nurse - Band 6 -Agency,Adult County Charnwood CMHT - Loughborough Base,HCL NURSING,HNSI0000841,427.99
Department of Health,Leicestershire Partnership NHS Trust,05/11/21,Nurse - Band 6 -Agency,Adult County West Leicestershire CMHT,HCL NURSING,HNSI0000841,1348.16
Department of Health,Leicestershire Partnership NHS Trust,05/11/21,NURSE - BAND 2 - AGENCY,Agnes Unit Management,HCL NURSING,HNSI0000841,25474.19
Department of Health,Leicestershire Partnership NHS Trust,05/11/21,NURSE - BAND 5 - AGENCY,Agnes Unit Management,HCL NURSING,HNSI0000841,13725.85
Department of Health,Leicestershire Partnership NHS Trust,05/11/21,NURSE - BAND 2 - AGENCY,Ashby Ward (Bradgate Unit),HCL NURSING,HNSI0000841,1144.51
Department of Health,Leicestershire Partnership NHS Trust,05/11/21,NURSE - BAND 5 - AGENCY,Ashby Ward (Bradgate Unit),HCL NURSING,HNSI0000841,1946.28
Department of Health,Leicestershire Partnership NHS Trust,05/11/21,NURSE - BAND 2 - AGENCY,Aston Ward (Bradgate Unit),HCL NURSING,HNSI0000841,1794.42
Department of Health,Leicestershire Partnership NHS Trust,05/11/21,NURSE - BAND 5 - AGENCY,Aston Ward (Bradgate Unit),HCL NURSING,HNSI0000841,2461.13
Department of Health,Leicestershire Partnership NHS Trust,05/11/21,NURSE - BAND 2 - AGENCY,Beaumont Ward - Bradgate Unit,HCL NURSING,HNSI0000841,3606.79
Department of Health,Leicestershire Partnership NHS Trust,05/11/21,NURSE - BAND 5 - AGENCY,Beaumont Ward - Bradgate Unit,HCL NURSING,HNSI0000841,3616.39
Department of Health,Leicestershire Partnership NHS Trust,05/11/21,NURSE - BAND 2 - AGENCY,Belvoir Psychiatric Intensive Care Unit,HCL NURSING,HNSI0000841,7368.84
Department of Health,Leicestershire Partnership NHS Trust,05/11/21,NURSE - BAND 5 - AGENCY,Belvoir Psychiatric Intensive Care Unit,HCL NURSING,HNSI0000841,4639.28
Department of Health,Leicestershire Partnership NHS Trust,05/11/21,NURSE - BAND 2 - AGENCY,Cedar (Willows),HCL NURSING,HNSI0000841,761.18
Department of Health,Leicestershire Partnership NHS Trust,05/11/21,Nurse - Band 6 -Agency,City West CMHT MHSOP,HCL NURSING,HNSI0000841,1046.25
Department of Health,Leicestershire Partnership NHS Trust,05/11/21,NURSE - BAND 2 - AGENCY,Coleman Ward,HCL NURSING,HNSI0000841,7769.24
Department of Health,Leicestershire Partnership NHS Trust,05/11/21,NURSE - BAND 5 - AGENCY,Coleman Ward,HCL NURSING,HNSI0000841,7455.74
Department of Health,Leicestershire Partnership NHS Trust,05/11/21,Nurse - Band 6 -Agency,Crisis Resolution,HCL NURSING,HNSI0000841,992.71
Department of Health,Leicestershire Partnership NHS Trust,05/11/21,NURSE - BAND 2 - AGENCY,Griffin Ward (HPC),HCL NURSING,HNSI0000841,4909.56
Department of Health,Leicestershire Partnership NHS Trust,05/11/21,NURSE - BAND 5 - AGENCY,Griffin Ward (HPC),HCL NURSING,HNSI0000841,2454.13
Department of Health,Leicestershire Partnership NHS Trust,05/11/21,NURSE - BAND 2 - AGENCY,Heather Ward,HCL NURSING,HNSI0000841,4035.80
Department of Health,Leicestershire Partnership NHS Trust,05/11/21,NURSE - BAND 5 - AGENCY,Heather Ward,HCL NURSING,HNSI0000841,3671.13
Department of Health,Leicestershire Partnership NHS Trust,05/11/21,NURSE - BAND 2 - AGENCY,Kirby Ward,HCL NURSING,HNSI0000841,1467.70
Department of Health,Leicestershire Partnership NHS Trust,05/11/21,NURSE - BAND 5 - AGENCY,Kirby Ward,HCL NURSING,HNSI0000841,2164.66
Department of Health,Leicestershire Partnership NHS Trust,05/11/21,NURSE - BAND 2 - AGENCY,Maple Ward,HCL NURSING,HNSI0000841,538.97
Department of Health,Leicestershire Partnership NHS Trust,05/11/21,Nurse - Band 6 -Agency,Mental Health Liaison Team,HCL NURSING,HNSI0000841,1522.92
Department of Health,Leicestershire Partnership NHS Trust,05/11/21,NURSE - BAND 2 - AGENCY,Mill Lodge,HCL NURSING,HNSI0000841,9294.19
Department of Health,Leicestershire Partnership NHS Trust,05/11/21,NURSE - BAND 5 - AGENCY,Mill Lodge,HCL NURSING,HNSI0000841,1925.80
Department of Health,Leicestershire Partnership NHS Trust,05/11/21,NURSE - BAND 2 - AGENCY,Outreach,HCL NURSING,HNSI0000841,1881.75
Department of Health,Leicestershire Partnership NHS Trust,05/11/21,NURSE - BAND 2 - AGENCY,Phoenix Ward (HPC),HCL NURSING,HNSI0000841,1336.57
Department of Health,Leicestershire Partnership NHS Trust,05/11/21,NURSE - BAND 5 - AGENCY,Phoenix Ward (HPC),HCL NURSING,HNSI0000841,3681.63
Department of Health,Leicestershire Partnership NHS Trust,05/11/21,NURSE - BAND 2 - AGENCY,Place Of Safety Assessment Unit,HCL NURSING,HNSI0000841,1924.50
Department of Health,Leicestershire Partnership NHS Trust,05/11/21,NURSE - BAND 5 - AGENCY,Place Of Safety Assessment Unit,HCL NURSING,HNSI0000841,2212.20
Department of Health,Leicestershire Partnership NHS Trust,05/11/21,NURSE - BAND 2 - AGENCY,Stewart House,HCL NURSING,HNSI0000841,425.55
Department of Health,Leicestershire Partnership NHS Trust,05/11/21,NURSE - BAND 5 - AGENCY,Stewart House,HCL NURSING,HNSI0000841,894.30
Department of Health,Leicestershire Partnership NHS Trust,05/11/21,NURSE - BAND 2 - AGENCY,Thornton Ward - Bradgate Unit,HCL NURSING,HNSI0000841,960.41
Department of Health,Leicestershire Partnership NHS Trust,05/11/21,NURSE - BAND 5 - AGENCY,Thornton Ward - Bradgate Unit,HCL NURSING,HNSI0000841,557.00
Department of Health,Leicestershire Partnership NHS Trust,05/11/21,NURSE - BAND 2 - AGENCY,Watermead Ward (Bradgate Unit),HCL NURSING,HNSI0000841,1627.02
Department of Health,Leicestershire Partnership NHS Trust,05/11/21,NURSE - BAND 5 - AGENCY,Watermead Ward (Bradgate Unit),HCL NURSING,HNSI0000841,2360.83
Department of Health,Leicestershire Partnership NHS Trust,05/11/21,NURSE - BAND 2 - AGENCY,Welford Ward,HCL NURSING,HNSI0000841,839.78
Department of Health,Leicestershire Partnership NHS Trust,05/11/21,NURSE - BAND 5 - AGENCY,Welford Ward,HCL NURSING,HNSI0000841,504.65
Department of Health,Leicestershire Partnership NHS Trust,05/11/21,NURSE - BAND 2 - AGENCY,CAMHS Inpatient Service,HCL NURSING,HNSI0000843,7716.11
Department of Health,Leicestershire Partnership NHS Trust,05/11/21,NURSE - BAND 5 - AGENCY,CAMHS Inpatient Service,HCL NURSING,HNSI0000843,916.15
Department of Health,Leicestershire Partnership NHS Trust,05/11/21,NURSE - BAND 5 - AGENCY,CAMHS Learning Disabilities and Outreach Team,HCL NURSING,HNSI0000843,1323.46
Department of Health,Leicestershire Partnership NHS Trust,05/11/21,NURSE - BAND 2 - AGENCY,CAMHS Outpatients,HCL NURSING,HNSI0000843,6800.83
Department of Health,Leicestershire Partnership NHS Trust,05/11/21,Nurse - Band 6 -Agency,CAMHS Waiting List Monies,HCL NURSING,HNSI0000843,5894.76
Department of Health,Leicestershire Partnership NHS Trust,05/11/21,NURSE - BAND 5 - AGENCY,Langley Ward ED Inpatient Service,HCL NURSING,HNSI0000843,1896.73
Department of Health,Leicestershire Partnership NHS Trust,05/11/21,Nurse - Band 6 -Agency,CAMHS HUB / CAP,HCL SOCIAL CARE,HWSI0000896,10721.79
Department of Health,Leicestershire Partnership NHS Trust,05/11/21,Nurse - Band 6 -Agency,CAMHS Learning Disabilities and Outreach Team,HCL SOCIAL CARE,HWSI0000896,801.00
Department of Health,Leicestershire Partnership NHS Trust,05/11/21,Nurse - Band 6 -Agency,CAMHS Outpatients,HCL SOCIAL CARE,HWSI0000896,1228.20
Department of Health,Leicestershire Partnership NHS Trust,05/11/21,Nurse - Band 6 -Agency,CAMHS Waiting List Monies,HCL SOCIAL CARE,HWSI0000896,18014.80
Department of Health,Leicestershire Partnership NHS Trust,05/11/21,Nurse - Band 6 -Agency,Crisis Response and Home Treatment,HCL SOCIAL CARE,HWSI0000896,1519.41
Department of Health,Leicestershire Partnership NHS Trust,08/11/21,Nurse - Band 6 -Agency,AMH - Central Access Point,HCL NURSING,HNSCM000546,-2143.42
Department of Health,Leicestershire Partnership NHS Trust,08/11/21,Nurse - Band 6 -Agency,Adult City East CMHT - Merlyn Vaz,HCL NURSING,HNSCM000546,-272.03
Department of Health,Leicestershire Partnership NHS Trust,08/11/21,Nurse - Band 6 -Agency,Adult County Charnwood CMHT - Loughborough Base,HCL NURSING,HNSCM000546,-344.25
Department of Health,Leicestershire Partnership NHS Trust,08/11/21,NURSE - BAND 2 - AGENCY,Agnes Unit Management,HCL NURSING,HNSCM000546,-5505.28
Department of Health,Leicestershire Partnership NHS Trust,08/11/21,NURSE - BAND 5 - AGENCY,Agnes Unit Management,HCL NURSING,HNSCM000546,-5775.53
Department of Health,Leicestershire Partnership NHS Trust,08/11/21,NURSE - BAND 2 - AGENCY,Ashby Ward (Bradgate Unit),HCL NURSING,HNSCM000546,-719.71
Department of Health,Leicestershire Partnership NHS Trust,08/11/21,NURSE - BAND 2 - AGENCY,Aston Ward (Bradgate Unit),HCL NURSING,HNSCM000546,-398.32
Department of Health,Leicestershire Partnership NHS Trust,08/11/21,NURSE - BAND 5 - AGENCY,Aston Ward (Bradgate Unit),HCL NURSING,HNSCM000546,-1690.34
Department of Health,Leicestershire Partnership NHS Trust,08/11/21,NURSE - BAND 2 - AGENCY,Beaumont Ward - Bradgate Unit,HCL NURSING,HNSCM000546,-2263.58
Department of Health,Leicestershire Partnership NHS Trust,08/11/21,NURSE - BAND 5 - AGENCY,Beaumont Ward - Bradgate Unit,HCL NURSING,HNSCM000546,-1821.74
Department of Health,Leicestershire Partnership NHS Trust,08/11/21,NURSE - BAND 2 - AGENCY,Beechwood Ward,HCL NURSING,HNSCM000546,-1688.62
Department of Health,Leicestershire Partnership NHS Trust,08/11/21,NURSE - BAND 5 - AGENCY,Beechwood Ward,HCL NURSING,HNSCM000546,-290.00
Department of Health,Leicestershire Partnership NHS Trust,08/11/21,NURSE - BAND 2 - AGENCY,Belvoir Psychiatric Intensive Care Unit,HCL NURSING,HNSCM000546,-1079.79
Department of Health,Leicestershire Partnership NHS Trust,08/11/21,NURSE - BAND 5 - AGENCY,Belvoir Psychiatric Intensive Care Unit,HCL NURSING,HNSCM000546,-999.65
Department of Health,Leicestershire Partnership NHS Trust,08/11/21,NURSE - BAND 2 - AGENCY,CAMHS Inpatient Service,HCL NURSING,HNSCM000546,-4782.49
Department of Health,Leicestershire Partnership NHS Trust,08/11/21,Nurse - Band 6 -Agency,CAMHS Waiting List Monies,HCL NURSING,HNSCM000546,-830.90
Department of Health,Leicestershire Partnership NHS Trust,08/11/21,Nurse - Band 6 -Agency,CAMHS Young Peoples Team,HCL NURSING,HNSCM000546,-688.50
Department of Health,Leicestershire Partnership NHS Trust,08/11/21,NURSE - BAND 2 - AGENCY,Cedar (Willows),HCL NURSING,HNSCM000546,-269.49
Department of Health,Leicestershire Partnership NHS Trust,08/11/21,NURSE - BAND 5 - AGENCY,City Planned Care - East,HCL NURSING,HNSCM000546,-4337.87
Department of Health,Leicestershire Partnership NHS Trust,08/11/21,NURSE - BAND 5 - AGENCY,City Planned Care - West,HCL NURSING,HNSCM000546,-5184.80
Department of Health,Leicestershire Partnership NHS Trust,08/11/21,Nurse - Band 6 -Agency,City West CMHT MHSOP,HCL NURSING,HNSCM000546,-641.98
Department of Health,Leicestershire Partnership NHS Trust,08/11/21,NURSE - BAND 2 - AGENCY,Clarendon Ward,HCL NURSING,HNSCM000546,-1505.67
Department of Health,Leicestershire Partnership NHS Trust,08/11/21,NURSE - BAND 5 - AGENCY,Clarendon Ward,HCL NURSING,HNSCM000546,-3103.80
Department of Health,Leicestershire Partnership NHS Trust,08/11/21,NURSE - BAND 2 - AGENCY,Coalville Snibston Ward,HCL NURSING,HNSCM000546,-495.28
Department of Health,Leicestershire Partnership NHS Trust,08/11/21,NURSE - BAND 5 - AGENCY,Coalville Snibston Ward,HCL NURSING,HNSCM000546,-2572.05
Department of Health,Leicestershire Partnership NHS Trust,08/11/21,NURSE - BAND 2 - AGENCY,Coalville Ward 2,HCL NURSING,HNSCM000546,-219.46
Department of Health,Leicestershire Partnership NHS Trust,08/11/21,NURSE - BAND 2 - AGENCY,Coleman Ward,HCL NURSING,HNSCM000546,-2990.12
Department of Health,Leicestershire Partnership NHS Trust,08/11/21,NURSE - BAND 5 - AGENCY,Coleman Ward,HCL NURSING,HNSCM000546,-5169.38
Department of Health,Leicestershire Partnership NHS Trust,08/11/21,NURSE - BAND 2 - AGENCY,Dalgliesh Ward,HCL NURSING,HNSCM000546,-1966.34
Department of Health,Leicestershire Partnership NHS Trust,08/11/21,NURSE - BAND 2 - AGENCY,Griffin Ward (HPC),HCL NURSING,HNSCM000546,-1916.30
Department of Health,Leicestershire Partnership NHS Trust,08/11/21,NURSE - BAND 5 - AGENCY,Griffin Ward (HPC),HCL NURSING,HNSCM000546,-146.55
Department of Health,Leicestershire Partnership NHS Trust,08/11/21,NURSE - BAND 2 - AGENCY,Gwendolen Ward,HCL NURSING,HNSCM000546,-1076.15
Department of Health,Leicestershire Partnership NHS Trust,08/11/21,NURSE - BAND 2 - AGENCY,H&B Comm Hosp East Ward,HCL NURSING,HNSCM000546,-1252.30
Department of Health,Leicestershire Partnership NHS Trust,08/11/21,NURSE - BAND 5 - AGENCY,H&B Comm Hosp East Ward,HCL NURSING,HNSCM000546,-525.35
Department of Health,Leicestershire Partnership NHS Trust,08/11/21,NURSE - BAND 2 - AGENCY,H&B Comm Hosp North Ward,HCL NURSING,HNSCM000546,-3964.07
Department of Health,Leicestershire Partnership NHS Trust,08/11/21,NURSE - BAND 5 - AGENCY,H&B Comm Hosp North Ward,HCL NURSING,HNSCM000546,-419.85
Department of Health,Leicestershire Partnership NHS Trust,08/11/21,NURSE - BAND 2 - AGENCY,Heather Ward,HCL NURSING,HNSCM000546,-786.31
Department of Health,Leicestershire Partnership NHS Trust,08/11/21,NURSE - BAND 5 - AGENCY,Heather Ward,HCL NURSING,HNSCM000546,-449.54
Department of Health,Leicestershire Partnership NHS Trust,08/11/21,NURSE - BAND 2 - AGENCY,Kirby Ward,HCL NURSING,HNSCM000546,-1246.82
Department of Health,Leicestershire Partnership NHS Trust,08/11/21,NURSE - BAND 5 - AGENCY,Kirby Ward,HCL NURSING,HNSCM000546,-738.91
Department of Health,Leicestershire Partnership NHS Trust,08/11/21,NURSE - BAND 5 - AGENCY,Langley Ward ED Inpatient Service,HCL NURSING,HNSCM000546,-799.85
Department of Health,Leicestershire Partnership NHS Trust,08/11/21,NURSE - BAND 5 - AGENCY,Lough Swithland Ward,HCL NURSING,HNSCM000546,-514.85
Department of Health,Leicestershire Partnership NHS Trust,08/11/21,NURSE - BAND 2 - AGENCY,Maple Ward,HCL NURSING,HNSCM000546,-174.73
Department of Health,Leicestershire Partnership NHS Trust,08/11/21,Nurse - Band 6 -Agency,Mental Health Triage Team,HCL NURSING,HNSCM000546,-350.03
Department of Health,Leicestershire Partnership NHS Trust,08/11/21,NURSE - BAND 2 - AGENCY,Mill Lodge,HCL NURSING,HNSCM000546,-3410.60
Department of Health,Leicestershire Partnership NHS Trust,08/11/21,NURSE - BAND 5 - AGENCY,Mill Lodge,HCL NURSING,HNSCM000546,-1515.54
Department of Health,Leicestershire Partnership NHS Trust,08/11/21,NURSE - BAND 2 - AGENCY,Phoenix Ward (HPC),HCL NURSING,HNSCM000546,-174.73
Department of Health,Leicestershire Partnership NHS Trust,08/11/21,NURSE - BAND 5 - AGENCY,Phoenix Ward (HPC),HCL NURSING,HNSCM000546,-56.38
Department of Health,Leicestershire Partnership NHS Trust,08/11/21,NURSE - BAND 2 - AGENCY,Place Of Safety Assessment Unit,HCL NURSING,HNSCM000546,-572.65
Department of Health,Leicestershire Partnership NHS Trust,08/11/21,NURSE - BAND 5 - AGENCY,Place Of Safety Assessment Unit,HCL NURSING,HNSCM000546,-56.38
Department of Health,Leicestershire Partnership NHS Trust,08/11/21,NURSE - BAND 2 - AGENCY,Rutland Ward Nursing,HCL NURSING,HNSCM000546,-793.43
Department of Health,Leicestershire Partnership NHS Trust,08/11/21,NURSE - BAND 5 - AGENCY,Rutland Ward Nursing,HCL NURSING,HNSCM000546,-1218.64
Department of Health,Leicestershire Partnership NHS Trust,08/11/21,NURSE - BAND 2 - AGENCY,St Lukes Stroke Ward,HCL NURSING,HNSCM000546,-1143.54
Department of Health,Leicestershire Partnership NHS Trust,08/11/21,NURSE - BAND 5 - AGENCY,St Lukes Ward 3,HCL NURSING,HNSCM000546,-2964.02
Department of Health,Leicestershire Partnership NHS Trust,08/11/21,NURSE - BAND 2 - AGENCY,Thornton Ward - Bradgate Unit,HCL NURSING,HNSCM000546,-262.38
Department of Health,Leicestershire Partnership NHS Trust,08/11/21,NURSE - BAND 2 - AGENCY,Wakerley Ward,HCL NURSING,HNSCM000546,-3898.68
Department of Health,Leicestershire Partnership NHS Trust,08/11/21,NURSE - BAND 5 - AGENCY,Wakerley Ward,HCL NURSING,HNSCM000546,-2382.17
Department of Health,Leicestershire Partnership NHS Trust,08/11/21,NURSE - BAND 5 - AGENCY,Watermead Ward (Bradgate Unit),HCL NURSING,HNSCM000546,-329.84
Department of Health,Leicestershire Partnership NHS Trust,08/11/21,NURSE - BAND 2 - AGENCY,Welford Ward,HCL NURSING,HNSCM000546,-511.80
Department of Health,Leicestershire Partnership NHS Trust,08/11/21,HR / Payroll Services,HR Employment Services,LINCOLNSHIRE PART NHSFT(RP7),2000021546,29360.83
Department of Health,Leicestershire Partnership NHS Trust,08/11/21,Crs_NHS_LT1y -Resus Inventory Supplied.,Balance Sheet Collection,SUPPLY CHAIN CO LTD,1122143432,32412.89
Department of Health,Leicestershire Partnership NHS Trust,09/11/21,Payroll Deductions -Home Electronics 61 Oct 21,Balance Sheet Collection,SME HCI LTD,137079,25949.30
Department of Health,Leicestershire Partnership NHS Trust,10/11/21,Medical Equipment Repairs / Maintenance,Medical Devices Maintenance (LPT),SUPPLY CHAIN CO LTD,2122004802,234815.26
Department of Health,Leicestershire Partnership NHS Trust,10/11/21,Medical Equipment Repairs / Maintenance,Medical Devices Maintenance (LPT),SUPPLY CHAIN CO LTD,2122004801,35080.04
Department of Health,Leicestershire Partnership NHS Trust,11/11/21,Medical Equipment Repairs / Maintenance,Medical Devices Maintenance (LPT),SUPPLY CHAIN CO LTD,2122004822,84128.78
Department of Health,Leicestershire Partnership NHS Trust,12/11/21,Services / Recharges from NHS Trusts,Inter Unit I & E Distribution,UHL NHS TRUST (RWE),L0254965,60000.04
Department of Health,Leicestershire Partnership NHS Trust,15/11/21,NURSE - BAND 2 - AGENCY,Beechwood Ward,HCL NURSING,HNSI0000842,3226.78
Department of Health,Leicestershire Partnership NHS Trust,15/11/21,NURSE - BAND 5 - AGENCY,Beechwood Ward,HCL NURSING,HNSI0000842,1288.80
Department of Health,Leicestershire Partnership NHS Trust,15/11/21,NURSE - BAND 5 - AGENCY,City Planned Care - East,HCL NURSING,HNSI0000842,10267.07
Department of Health,Leicestershire Partnership NHS Trust,15/11/21,NURSE - BAND 5 - AGENCY,City Planned Care - West,HCL NURSING,HNSI0000842,10566.31
Department of Health,Leicestershire Partnership NHS Trust,15/11/21,NURSE - BAND 2 - AGENCY,Clarendon Ward,HCL NURSING,HNSI0000842,3178.48
Department of Health,Leicestershire Partnership NHS Trust,15/11/21,NURSE - BAND 5 - AGENCY,Clarendon Ward,HCL NURSING,HNSI0000842,9790.71
Department of Health,Leicestershire Partnership NHS Trust,15/11/21,NURSE - BAND 2 - AGENCY,Coalville Snibston Ward,HCL NURSING,HNSI0000842,1219.06
Department of Health,Leicestershire Partnership NHS Trust,15/11/21,NURSE - BAND 5 - AGENCY,Coalville Snibston Ward,HCL NURSING,HNSI0000842,1272.28
Department of Health,Leicestershire Partnership NHS Trust,15/11/21,NURSE - BAND 2 - AGENCY,Dalgliesh Ward,HCL NURSING,HNSI0000842,2174.54
Department of Health,Leicestershire Partnership NHS Trust,15/11/21,NURSE - BAND 5 - AGENCY,Dalgliesh Ward,HCL NURSING,HNSI0000842,1641.41
Department of Health,Leicestershire Partnership NHS Trust,15/11/21,NURSE - BAND 2 - AGENCY,H&B Comm Hosp East Ward,HCL NURSING,HNSI0000842,4238.51
Department of Health,Leicestershire Partnership NHS Trust,15/11/21,NURSE - BAND 5 - AGENCY,H&B Comm Hosp East Ward,HCL NURSING,HNSI0000842,4459.67
Department of Health,Leicestershire Partnership NHS Trust,15/11/21,NURSE - BAND 2 - AGENCY,H&B Comm Hosp North Ward,HCL NURSING,HNSI0000842,5832.98
Department of Health,Leicestershire Partnership NHS Trust,15/11/21,NURSE - BAND 5 - AGENCY,H&B Comm Hosp North Ward,HCL NURSING,HNSI0000842,2137.41
Department of Health,Leicestershire Partnership NHS Trust,15/11/21,NURSE - BAND 2 - AGENCY,Lough Swithland Ward,HCL NURSING,HNSI0000842,219.46
Department of Health,Leicestershire Partnership NHS Trust,15/11/21,NURSE - BAND 5 - AGENCY,Lough Swithland Ward,HCL NURSING,HNSI0000842,1555.05
Department of Health,Leicestershire Partnership NHS Trust,15/11/21,NURSE - BAND 2 - AGENCY,Rutland Ward Nursing,HCL NURSING,HNSI0000842,567.00
Department of Health,Leicestershire Partnership NHS Trust,15/11/21,NURSE - BAND 5 - AGENCY,Rutland Ward Nursing,HCL NURSING,HNSI0000842,514.85
Department of Health,Leicestershire Partnership NHS Trust,15/11/21,NURSE - BAND 2 - AGENCY,St Lukes Stroke Ward,HCL NURSING,HNSI0000842,1177.88
Department of Health,Leicestershire Partnership NHS Trust,15/11/21,NURSE - BAND 5 - AGENCY,St Lukes Stroke Ward,HCL NURSING,HNSI0000842,1227.50
Department of Health,Leicestershire Partnership NHS Trust,15/11/21,NURSE - BAND 2 - AGENCY,St Lukes Ward 3,HCL NURSING,HNSI0000842,732.03
Department of Health,Leicestershire Partnership NHS Trust,15/11/21,NURSE - BAND 5 - AGENCY,St Lukes Ward 3,HCL NURSING,HNSI0000842,2063.92
Department of Health,Leicestershire Partnership NHS Trust,15/11/21,NURSE - BAND 2 - AGENCY,Wakerley Ward,HCL NURSING,HNSI0000842,2324.61
Department of Health,Leicestershire Partnership NHS Trust,15/11/21,NURSE - BAND 5 - AGENCY,Wakerley Ward,HCL NURSING,HNSI0000842,6657.11
Department of Health,Leicestershire Partnership NHS Trust,15/11/21,WIP Project Not in BS - Information Technology,Work in Progress,DELL COMPUTERS,7402757827,78396.00
Department of Health,Leicestershire Partnership NHS Trust,15/11/21,Mobile Telephone Rental / Calls,Specific Unit Budget Reserves,VODAFONE CORPORATE LTD,000099598511,136761.12
Department of Health,Leicestershire Partnership NHS Trust,16/11/21,Insurance Costs,Chief Executives Office,NHS LITIGATION AUTHORITY,SICX407202,165217.80
Department of Health,Leicestershire Partnership NHS Trust,16/11/21,WIP Project Not in BS - Buildings excl Dwellings,Work in Progress,TILBURY DOUGLAS CONSTRUCTION LTD,21110140,200119.38
Department of Health,Leicestershire Partnership NHS Trust,17/11/21,FP10'S,Adult City Drugs,NHS BUS SERVICES AUTHORITY,1000071221,20652.65
Department of Health,Leicestershire Partnership NHS Trust,17/11/21,FP10'S,Adult County Drugs,NHS BUS SERVICES AUTHORITY,1000071221,22619.26
Department of Health,Leicestershire Partnership NHS Trust,17/11/21,FP10'S,CAMHS Outpatients,NHS BUS SERVICES AUTHORITY,1000071221,11427.10
Department of Health,Leicestershire Partnership NHS Trust,17/11/21,FP10'S,Community Paediatrics,NHS BUS SERVICES AUTHORITY,1000071221,6352.06
Department of Health,Leicestershire Partnership NHS Trust,17/11/21,FP10'S,Dementia Related Drugs and Investigations,NHS BUS SERVICES AUTHORITY,1000071221,2827.28
Department of Health,Leicestershire Partnership NHS Trust,17/11/21,FP10'S,Eating Disorders Outpatient Service,NHS BUS SERVICES AUTHORITY,1000071221,1300.64
Department of Health,Leicestershire Partnership NHS Trust,17/11/21,FP10'S,Forensic Services - Community,NHS BUS SERVICES AUTHORITY,1000071221,74.24
Department of Health,Leicestershire Partnership NHS Trust,17/11/21,FP10'S,LOROS Pharmacy,NHS BUS SERVICES AUTHORITY,1000071221,798.51
Department of Health,Leicestershire Partnership NHS Trust,17/11/21,FP10'S,Liason Psychiatry Service,NHS BUS SERVICES AUTHORITY,1000071221,31.17
Department of Health,Leicestershire Partnership NHS Trust,17/11/21,FP10'S,Lough Swithland Ward,NHS BUS SERVICES AUTHORITY,1000071221,19.99
Department of Health,Leicestershire Partnership NHS Trust,17/11/21,FP10'S,Mental Health Liaison Team,NHS BUS SERVICES AUTHORITY,1000071221,2.21
Department of Health,Leicestershire Partnership NHS Trust,17/11/21,FP10'S,PIER Team - Early Intervention Services,NHS BUS SERVICES AUTHORITY,1000071221,17363.52
Department of Health,Leicestershire Partnership NHS Trust,17/11/21,FP10'S,Snr Med Staff (Inc Med Reps),NHS BUS SERVICES AUTHORITY,1000071221,5849.15
Department of Health,Leicestershire Partnership NHS Trust,17/11/21,Nurse - Band 6 -Agency,AMH - Central Access Point,HCL NURSING,HNSI0000848,4023.22
Department of Health,Leicestershire Partnership NHS Trust,17/11/21,Nurse - Band 6 -Agency,Adult City East CMHT - Merlyn Vaz,HCL NURSING,HNSI0000848,2234.82
Department of Health,Leicestershire Partnership NHS Trust,17/11/21,NURSE - BAND 2 - AGENCY,Agnes Unit Management,HCL NURSING,HNSI0000848,22249.01
Department of Health,Leicestershire Partnership NHS Trust,17/11/21,NURSE - BAND 5 - AGENCY,Agnes Unit Management,HCL NURSING,HNSI0000848,16106.75
Department of Health,Leicestershire Partnership NHS Trust,17/11/21,NURSE - BAND 2 - AGENCY,Ashby Ward (Bradgate Unit),HCL NURSING,HNSI0000848,3342.47
Department of Health,Leicestershire Partnership NHS Trust,17/11/21,NURSE - BAND 5 - AGENCY,Ashby Ward (Bradgate Unit),HCL NURSING,HNSI0000848,3309.33
Department of Health,Leicestershire Partnership NHS Trust,17/11/21,NURSE - BAND 2 - AGENCY,Aston Ward (Bradgate Unit),HCL NURSING,HNSI0000848,174.73
Department of Health,Leicestershire Partnership NHS Trust,17/11/21,NURSE - BAND 5 - AGENCY,Aston Ward (Bradgate Unit),HCL NURSING,HNSI0000848,4894.60
Department of Health,Leicestershire Partnership NHS Trust,17/11/21,NURSE - BAND 2 - AGENCY,Beaumont Ward - Bradgate Unit,HCL NURSING,HNSI0000848,4264.19
Department of Health,Leicestershire Partnership NHS Trust,17/11/21,NURSE - BAND 5 - AGENCY,Beaumont Ward - Bradgate Unit,HCL NURSING,HNSI0000848,3324.64
Department of Health,Leicestershire Partnership NHS Trust,17/11/21,NURSE - BAND 2 - AGENCY,Belvoir Psychiatric Intensive Care Unit,HCL NURSING,HNSI0000848,5002.87
Department of Health,Leicestershire Partnership NHS Trust,17/11/21,NURSE - BAND 5 - AGENCY,Belvoir Psychiatric Intensive Care Unit,HCL NURSING,HNSI0000848,5874.98
Department of Health,Leicestershire Partnership NHS Trust,17/11/21,NURSE - BAND 2 - AGENCY,Cedar (Willows),HCL NURSING,HNSI0000848,269.49
Department of Health,Leicestershire Partnership NHS Trust,17/11/21,Nurse - Band 6 -Agency,City West CMHT MHSOP,HCL NURSING,HNSI0000848,976.50
Department of Health,Leicestershire Partnership NHS Trust,17/11/21,NURSE - BAND 2 - AGENCY,Coleman Ward,HCL NURSING,HNSI0000848,4048.91
Department of Health,Leicestershire Partnership NHS Trust,17/11/21,NURSE - BAND 5 - AGENCY,Coleman Ward,HCL NURSING,HNSI0000848,9454.22
Department of Health,Leicestershire Partnership NHS Trust,17/11/21,Nurse - Band 6 -Agency,Crisis Resolution,HCL NURSING,HNSI0000848,244.01
Department of Health,Leicestershire Partnership NHS Trust,17/11/21,NURSE - BAND 2 - AGENCY,Griffin Ward (HPC),HCL NURSING,HNSI0000848,5432.37
Department of Health,Leicestershire Partnership NHS Trust,17/11/21,NURSE - BAND 5 - AGENCY,Griffin Ward (HPC),HCL NURSING,HNSI0000848,4375.40
Department of Health,Leicestershire Partnership NHS Trust,17/11/21,NURSE - BAND 2 - AGENCY,Heather Ward,HCL NURSING,HNSI0000848,1453.66
Department of Health,Leicestershire Partnership NHS Trust,17/11/21,NURSE - BAND 5 - AGENCY,Heather Ward,HCL NURSING,HNSI0000848,2349.64
Department of Health,Leicestershire Partnership NHS Trust,17/11/21,NURSE - BAND 2 - AGENCY,Kirby Ward,HCL NURSING,HNSI0000848,772.14
Department of Health,Leicestershire Partnership NHS Trust,17/11/21,NURSE - BAND 5 - AGENCY,Kirby Ward,HCL NURSING,HNSI0000848,3019.57
Department of Health,Leicestershire Partnership NHS Trust,17/11/21,NURSE - BAND 2 - AGENCY,Maple Ward,HCL NURSING,HNSI0000848,459.59
Department of Health,Leicestershire Partnership NHS Trust,17/11/21,Nurse - Band 6 -Agency,Mental Health Liaison Team,HCL NURSING,HNSI0000848,1567.63
Department of Health,Leicestershire Partnership NHS Trust,17/11/21,NURSE - BAND 2 - AGENCY,Mill Lodge,HCL NURSING,HNSI0000848,3870.01
Department of Health,Leicestershire Partnership NHS Trust,17/11/21,NURSE - BAND 5 - AGENCY,Mill Lodge,HCL NURSING,HNSI0000848,3882.45
Department of Health,Leicestershire Partnership NHS Trust,17/11/21,NURSE - BAND 2 - AGENCY,Outreach,HCL NURSING,HNSI0000848,636.91
Department of Health,Leicestershire Partnership NHS Trust,17/11/21,NURSE - BAND 2 - AGENCY,Phoenix Ward (HPC),HCL NURSING,HNSI0000848,3345.11
Department of Health,Leicestershire Partnership NHS Trust,17/11/21,NURSE - BAND 5 - AGENCY,Phoenix Ward (HPC),HCL NURSING,HNSI0000848,4410.16
Department of Health,Leicestershire Partnership NHS Trust,17/11/21,NURSE - BAND 2 - AGENCY,Place Of Safety Assessment Unit,HCL NURSING,HNSI0000848,891.01
Department of Health,Leicestershire Partnership NHS Trust,17/11/21,NURSE - BAND 5 - AGENCY,Place Of Safety Assessment Unit,HCL NURSING,HNSI0000848,2187.35
Department of Health,Leicestershire Partnership NHS Trust,17/11/21,NURSE - BAND 5 - AGENCY,Stewart House,HCL NURSING,HNSI0000848,447.15
Department of Health,Leicestershire Partnership NHS Trust,17/11/21,NURSE - BAND 5 - AGENCY,Thornton Ward - Bradgate Unit,HCL NURSING,HNSI0000848,901.69
Department of Health,Leicestershire Partnership NHS Trust,17/11/21,NURSE - BAND 2 - AGENCY,Watermead Ward (Bradgate Unit),HCL NURSING,HNSI0000848,827.33
Department of Health,Leicestershire Partnership NHS Trust,17/11/21,NURSE - BAND 5 - AGENCY,Watermead Ward (Bradgate Unit),HCL NURSING,HNSI0000848,4402.10
Department of Health,Leicestershire Partnership NHS Trust,17/11/21,NURSE - BAND 2 - AGENCY,Welford Ward,HCL NURSING,HNSI0000848,1532.22
Department of Health,Leicestershire Partnership NHS Trust,17/11/21,Nurse - Band 6 -Agency,CAMHS HUB / CAP,HCL SOCIAL CARE,HWSI0000903,11367.30
Department of Health,Leicestershire Partnership NHS Trust,17/11/21,Nurse - Band 6 -Agency,CAMHS Learning Disabilities and Outreach Team,HCL SOCIAL CARE,HWSI0000903,640.80
Department of Health,Leicestershire Partnership NHS Trust,17/11/21,Nurse - Band 6 -Agency,CAMHS Waiting List Monies,HCL SOCIAL CARE,HWSI0000903,21915.21
Department of Health,Leicestershire Partnership NHS Trust,17/11/21,Nurse - Band 6 -Agency,Crisis Response and Home Treatment,HCL SOCIAL CARE,HWSI0000903,2013.22
Department of Health,Leicestershire Partnership NHS Trust,17/11/21,NURSE - BAND 2 - AGENCY,CAMHS Inpatient Service,HCL NURSING,HNSI0000847,11790.22
Department of Health,Leicestershire Partnership NHS Trust,17/11/21,NURSE - BAND 5 - AGENCY,CAMHS Inpatient Service,HCL NURSING,HNSI0000847,466.15
Department of Health,Leicestershire Partnership NHS Trust,17/11/21,NURSE - BAND 5 - AGENCY,CAMHS Learning Disabilities and Outreach Team,HCL NURSING,HNSI0000847,2148.65
Department of Health,Leicestershire Partnership NHS Trust,17/11/21,NURSE - BAND 2 - AGENCY,CAMHS Outpatients,HCL NURSING,HNSI0000847,6001.57
Department of Health,Leicestershire Partnership NHS Trust,17/11/21,Nurse - Band 6 -Agency,CAMHS Outpatients,HCL NURSING,HNSI0000847,1340.26
Department of Health,Leicestershire Partnership NHS Trust,17/11/21,Nurse - Band 6 -Agency,CAMHS Waiting List Monies,HCL NURSING,HNSI0000847,4524.26
Department of Health,Leicestershire Partnership NHS Trust,17/11/21,NURSE - BAND 2 - AGENCY,Langley Ward ED Inpatient Service,HCL NURSING,HNSI0000847,297.76
Department of Health,Leicestershire Partnership NHS Trust,17/11/21,NURSE - BAND 5 - AGENCY,Langley Ward ED Inpatient Service,HCL NURSING,HNSI0000847,3050.23
Department of Health,Leicestershire Partnership NHS Trust,18/11/21,NURSE - BAND 2 - AGENCY,Beechwood Ward,HCL NURSING,HNSI0000849,7500.25
Department of Health,Leicestershire Partnership NHS Trust,18/11/21,NURSE - BAND 5 - AGENCY,Beechwood Ward,HCL NURSING,HNSI0000849,2217.51
Department of Health,Leicestershire Partnership NHS Trust,18/11/21,NURSE - BAND 5 - AGENCY,City Planned Care - East,HCL NURSING,HNSI0000849,9587.92
Department of Health,Leicestershire Partnership NHS Trust,18/11/21,NURSE - BAND 5 - AGENCY,City Planned Care - West,HCL NURSING,HNSI0000849,14594.15
Department of Health,Leicestershire Partnership NHS Trust,18/11/21,NURSE - BAND 2 - AGENCY,Clarendon Ward,HCL NURSING,HNSI0000849,2981.54
Department of Health,Leicestershire Partnership NHS Trust,18/11/21,NURSE - BAND 5 - AGENCY,Clarendon Ward,HCL NURSING,HNSI0000849,7506.18
Department of Health,Leicestershire Partnership NHS Trust,18/11/21,NURSE - BAND 2 - AGENCY,Coalville Snibston Ward,HCL NURSING,HNSI0000849,3396.83
Department of Health,Leicestershire Partnership NHS Trust,18/11/21,NURSE - BAND 5 - AGENCY,Coalville Snibston Ward,HCL NURSING,HNSI0000849,3128.28
Department of Health,Leicestershire Partnership NHS Trust,18/11/21,NURSE - BAND 2 - AGENCY,Coalville Ward 2,HCL NURSING,HNSI0000849,240.34
Department of Health,Leicestershire Partnership NHS Trust,18/11/21,NURSE - BAND 5 - AGENCY,Coalville Ward 2,HCL NURSING,HNSI0000849,386.05
Department of Health,Leicestershire Partnership NHS Trust,18/11/21,NURSE - BAND 2 - AGENCY,Dalgliesh Ward,HCL NURSING,HNSI0000849,945.28
Department of Health,Leicestershire Partnership NHS Trust,18/11/21,NURSE - BAND 5 - AGENCY,Dalgliesh Ward,HCL NURSING,HNSI0000849,986.70
Department of Health,Leicestershire Partnership NHS Trust,18/11/21,NURSE - BAND 2 - AGENCY,H&B Comm Hosp East Ward,HCL NURSING,HNSI0000849,4507.16
Department of Health,Leicestershire Partnership NHS Trust,18/11/21,NURSE - BAND 5 - AGENCY,H&B Comm Hosp East Ward,HCL NURSING,HNSI0000849,2915.99
Department of Health,Leicestershire Partnership NHS Trust,18/11/21,NURSE - BAND 2 - AGENCY,H&B Comm Hosp North Ward,HCL NURSING,HNSI0000849,3895.49
Department of Health,Leicestershire Partnership NHS Trust,18/11/21,NURSE - BAND 5 - AGENCY,H&B Comm Hosp North Ward,HCL NURSING,HNSI0000849,2757.46
Department of Health,Leicestershire Partnership NHS Trust,18/11/21,NURSE - BAND 2 - AGENCY,Lough Swithland Ward,HCL NURSING,HNSI0000849,673.06
Department of Health,Leicestershire Partnership NHS Trust,18/11/21,NURSE - BAND 5 - AGENCY,Lough Swithland Ward,HCL NURSING,HNSI0000849,4265.80
Department of Health,Leicestershire Partnership NHS Trust,18/11/21,NURSE - BAND 2 - AGENCY,Rutland Ward Nursing,HCL NURSING,HNSI0000849,729.29
Department of Health,Leicestershire Partnership NHS Trust,18/11/21,NURSE - BAND 5 - AGENCY,Rutland Ward Nursing,HCL NURSING,HNSI0000849,868.64
Department of Health,Leicestershire Partnership NHS Trust,18/11/21,NURSE - BAND 2 - AGENCY,St Lukes Stroke Ward,HCL NURSING,HNSI0000849,696.66
Department of Health,Leicestershire Partnership NHS Trust,18/11/21,NURSE - BAND 2 - AGENCY,St Lukes Ward 3,HCL NURSING,HNSI0000849,1741.42
Department of Health,Leicestershire Partnership NHS Trust,18/11/21,NURSE - BAND 2 - AGENCY,Wakerley Ward,HCL NURSING,HNSI0000849,4291.16
Department of Health,Leicestershire Partnership NHS Trust,18/11/21,NURSE - BAND 5 - AGENCY,Wakerley Ward,HCL NURSING,HNSI0000849,4009.37
Department of Health,Leicestershire Partnership NHS Trust,19/11/21,Healthcare Services / Recharges from Non-NHS Bodies,Adult Eating Disorder Collaborative,ELLERN MEDE MOORGATE,OTM0060,37200.00
Department of Health,Leicestershire Partnership NHS Trust,19/11/21,Photocopying,Estates & Facilities Central,LEXMARK INTERNATIONAL LTD,900650302042,34843.01
Department of Health,Leicestershire Partnership NHS Trust,19/11/21,Med GP Trainees,Medical Trainees,ST.HELENS & KNOWSLEY NHS TRUST,16809443,75000.00
Department of Health,Leicestershire Partnership NHS Trust,19/11/21,PropCo Estates Management,Melton Mowbray Hospital (previously St. Mary's) (PROPCO),NHS PROPERTY SERVICES LTD,00000001/H501189,-26457.85
Department of Health,Leicestershire Partnership NHS Trust,19/11/21,Occupational Health,HR Operations,UHL NHS TRUST (RWE),L0255108,35290.00
Department of Health,Leicestershire Partnership NHS Trust,22/11/21,Landline Telephone Rental / Calls,"Beaumont Leys Health Centre (P94, LPT)",VIRGIN MEDIA BUSINESS,853083001/004/1121,394.14
Department of Health,Leicestershire Partnership NHS Trust,22/11/21,Landline Telephone Rental / Calls,"Bennion Centre (including Forest Grange Day Unit) (P8, LPT)",VIRGIN MEDIA BUSINESS,853083001/004/1121,7.74
Department of Health,Leicestershire Partnership NHS Trust,22/11/21,Landline Telephone Rental / Calls,"Bradgate Unit (including Glenvale day Unit) (P7, LPT)",VIRGIN MEDIA BUSINESS,853083001/004/1121,9345.05
Department of Health,Leicestershire Partnership NHS Trust,22/11/21,Landline Telephone Rental / Calls,Braunstone Health and Social Care Centre (Part) (PROPCO),VIRGIN MEDIA BUSINESS,853083001/004/1121,1105.54
Department of Health,Leicestershire Partnership NHS Trust,22/11/21,Landline Telephone Rental / Calls,Bridge Park Plaza - First Floor (LPT),VIRGIN MEDIA BUSINESS,853083001/004/1121,4691.48
Department of Health,Leicestershire Partnership NHS Trust,22/11/21,Landline Telephone Rental / Calls,"Coalville Community Hospital (P138, LPT)",VIRGIN MEDIA BUSINESS,853083001/004/1121,1674.22
Department of Health,Leicestershire Partnership NHS Trust,22/11/21,Landline Telephone Rental / Calls,"Coalville Health Centre (P121, LPT)",VIRGIN MEDIA BUSINESS,853083001/004/1121,173.77
Department of Health,Leicestershire Partnership NHS Trust,22/11/21,Landline Telephone Rental / Calls,County Hall,VIRGIN MEDIA BUSINESS,853083001/004/1121,7179.30
Department of Health,Leicestershire Partnership NHS Trust,22/11/21,Landline Telephone Rental / Calls,Estates & Facilities Central,VIRGIN MEDIA BUSINESS,853083001/004/1121,12.91
Department of Health,Leicestershire Partnership NHS Trust,22/11/21,Landline Telephone Rental / Calls,"Evington Centre (P6, LPT)",VIRGIN MEDIA BUSINESS,853083001/004/1121,1784.34
Department of Health,Leicestershire Partnership NHS Trust,22/11/21,Landline Telephone Rental / Calls,HIS,VIRGIN MEDIA BUSINESS,853083001/004/1121,3250.91
Department of Health,Leicestershire Partnership NHS Trust,22/11/21,Landline Telephone Rental / Calls,"Hawthorne Centre - Coalville (P14, LPT)",VIRGIN MEDIA BUSINESS,853083001/004/1121,542.47
Department of Health,Leicestershire Partnership NHS Trust,22/11/21,Landline Telephone Rental / Calls,"Hinckley and Bosworth Community Hospital (Sunnyside) (P133, LPT)",VIRGIN MEDIA BUSINESS,853083001/004/1121,1139.72
Department of Health,Leicestershire Partnership NHS Trust,22/11/21,Landline Telephone Rental / Calls,Hood Park Leisure Centre Clinic,VIRGIN MEDIA BUSINESS,853083001/004/1121,28.19
Department of Health,Leicestershire Partnership NHS Trust,22/11/21,Landline Telephone Rental / Calls,"Hynca Lodge (P33, LPT)",VIRGIN MEDIA BUSINESS,853083001/004/1121,387.66
Department of Health,Leicestershire Partnership NHS Trust,22/11/21,Landline Telephone Rental / Calls,"Legion House, Ashby",VIRGIN MEDIA BUSINESS,853083001/004/1121,47.05
Department of Health,Leicestershire Partnership NHS Trust,22/11/21,Landline Telephone Rental / Calls,"Loughborough Hospital (P136, LPT)",VIRGIN MEDIA BUSINESS,853083001/004/1121,4927.86
Department of Health,Leicestershire Partnership NHS Trust,22/11/21,Landline Telephone Rental / Calls,Mawson House (LPT),VIRGIN MEDIA BUSINESS,853083001/004/1121,490.80
Department of Health,Leicestershire Partnership NHS Trust,22/11/21,Landline Telephone Rental / Calls,Merlyn Vaz Centre (CHP),VIRGIN MEDIA BUSINESS,853083001/004/1121,1603.27
Department of Health,Leicestershire Partnership NHS Trust,22/11/21,Landline Telephone Rental / Calls,"Mett Centre (P49, LPT)",VIRGIN MEDIA BUSINESS,853083001/004/1121,84.10
Department of Health,Leicestershire Partnership NHS Trust,22/11/21,Landline Telephone Rental / Calls,NSPCC Training Cente,VIRGIN MEDIA BUSINESS,853083001/004/1121,159.96
Department of Health,Leicestershire Partnership NHS Trust,22/11/21,Landline Telephone Rental / Calls,New Parks Health Centre (PROPCO),VIRGIN MEDIA BUSINESS,853083001/004/1121,1743.24
Department of Health,Leicestershire Partnership NHS Trust,22/11/21,Landline Telephone Rental / Calls,"OSL House (P54, LPT)",VIRGIN MEDIA BUSINESS,853083001/004/1121,995.90
Department of Health,Leicestershire Partnership NHS Trust,22/11/21,Landline Telephone Rental / Calls,"Orchard Resource Centre (P15, LPT)",VIRGIN MEDIA BUSINESS,853083001/004/1121,663.29
Department of Health,Leicestershire Partnership NHS Trust,22/11/21,Landline Telephone Rental / Calls,Pasley Road Health Centre (PROPCO),VIRGIN MEDIA BUSINESS,853083001/004/1121,121.00
Department of Health,Leicestershire Partnership NHS Trust,22/11/21,Landline Telephone Rental / Calls,"Prince Philip House (P96, LPT)",VIRGIN MEDIA BUSINESS,853083001/004/1121,1880.40
Department of Health,Leicestershire Partnership NHS Trust,22/11/21,Landline Telephone Rental / Calls,Rushey Mead Health Centre (PROPCO),VIRGIN MEDIA BUSINESS,853083001/004/1121,77.04
Department of Health,Leicestershire Partnership NHS Trust,22/11/21,Landline Telephone Rental / Calls,"Shepshed Health Centre (P123, LPT)",VIRGIN MEDIA BUSINESS,853083001/004/1121,14.87
Department of Health,Leicestershire Partnership NHS Trust,22/11/21,Landline Telephone Rental / Calls,"Springfield Road Health Centre (P92, LPT)",VIRGIN MEDIA BUSINESS,853083001/004/1121,358.98
Department of Health,Leicestershire Partnership NHS Trust,22/11/21,Landline Telephone Rental / Calls,"St Peters Health Center (Part 1st and 2nd floors) (P66, LPT)",VIRGIN MEDIA BUSINESS,853083001/004/1121,2107.92
Department of Health,Leicestershire Partnership NHS Trust,22/11/21,Landline Telephone Rental / Calls,"Stewart House (P61, LPT)",VIRGIN MEDIA BUSINESS,853083001/004/1121,7.74
Department of Health,Leicestershire Partnership NHS Trust,22/11/21,Landline Telephone Rental / Calls,"Swithland House - London Road 352 (P44, LPT)",VIRGIN MEDIA BUSINESS,853083001/004/1121,462.14
Department of Health,Leicestershire Partnership NHS Trust,22/11/21,Landline Telephone Rental / Calls,"The Cedars (P19, LPT)",VIRGIN MEDIA BUSINESS,853083001/004/1121,841.51
Department of Health,Leicestershire Partnership NHS Trust,22/11/21,Landline Telephone Rental / Calls,"The Willows - Cordelia Close (P22, LPT)",VIRGIN MEDIA BUSINESS,853083001/004/1121,449.62
Department of Health,Leicestershire Partnership NHS Trust,22/11/21,Landline Telephone Rental / Calls,"Valentine Centre (P3, LPT)",VIRGIN MEDIA BUSINESS,853083001/004/1121,2025.18
Department of Health,Leicestershire Partnership NHS Trust,22/11/21,Landline Telephone Rental / Calls,Warren Park Way 25 (PROPCO),VIRGIN MEDIA BUSINESS,853083001/004/1121,727.87
Department of Health,Leicestershire Partnership NHS Trust,22/11/21,Landline Telephone Rental / Calls,"Westcotes Group -Westcotes House (P78, LPT)",VIRGIN MEDIA BUSINESS,853083001/004/1121,1796.47
Department of Health,Leicestershire Partnership NHS Trust,22/11/21,Landline Telephone Rental / Calls,"Winstanley Drive Health Centre (P8, LPT)",VIRGIN MEDIA BUSINESS,853083001/004/1121,414.74
Department of Health,Leicestershire Partnership NHS Trust,22/11/21,Leased / Hired Vehicles,Autism,AUTOMOTIVE LEASING LTD,509072556,638.96
Department of Health,Leicestershire Partnership NHS Trust,22/11/21,Prep_ LT1y -Prepayments Lease Cars,Balance Sheet Collection,AUTOMOTIVE LEASING LTD,509072556,18071.68
Department of Health,Leicestershire Partnership NHS Trust,22/11/21,Trade_Drs_LT1y -Lease Cars Invoicing Contrl Ac.,Balance Sheet Collection,AUTOMOTIVE LEASING LTD,509072556,262.00
Department of Health,Leicestershire Partnership NHS Trust,22/11/21,VAT_Drs _ LT1y -VAT Contracted Out Services Input Tax,Balance Sheet Collection,AUTOMOTIVE LEASING LTD,509072556,365.68
Department of Health,Leicestershire Partnership NHS Trust,22/11/21,Leased / Hired Vehicles,COVID 19,AUTOMOTIVE LEASING LTD,509072556,472.36
Department of Health,Leicestershire Partnership NHS Trust,22/11/21,Leased / Hired Vehicles,CQUINN 5,AUTOMOTIVE LEASING LTD,509072556,15.00
Department of Health,Leicestershire Partnership NHS Trust,22/11/21,Leased / Hired Vehicles,City Planned Care - West,AUTOMOTIVE LEASING LTD,509072556,20.00
Department of Health,Leicestershire Partnership NHS Trust,22/11/21,Leased / Hired Vehicles,Countywide Memory Service,AUTOMOTIVE LEASING LTD,509072556,381.28
Department of Health,Leicestershire Partnership NHS Trust,22/11/21,Leased / Hired Vehicles,Crisis Resolution,AUTOMOTIVE LEASING LTD,509072556,15.00
Department of Health,Leicestershire Partnership NHS Trust,22/11/21,Leased / Hired Vehicles,Crisis Response and Home Treatment,AUTOMOTIVE LEASING LTD,509072556,657.59
Department of Health,Leicestershire Partnership NHS Trust,22/11/21,Leased / Hired Vehicles,"East Planned Care - Oadby,Wigston & Harborough",AUTOMOTIVE LEASING LTD,509072556,15.00
Department of Health,Leicestershire Partnership NHS Trust,22/11/21,Leased / Hired Vehicles,Integrated Care Service - Rutland,AUTOMOTIVE LEASING LTD,509072556,10.00
Department of Health,Leicestershire Partnership NHS Trust,22/11/21,Leased / Hired Vehicles,Non Recurrent 2012/13,AUTOMOTIVE LEASING LTD,509072556,15.00
Department of Health,Leicestershire Partnership NHS Trust,23/11/21,Nurse - Band 6 -Agency,AMH - Central Access Point,HCL NURSING,HNSI0000855,1350.75
Department of Health,Leicestershire Partnership NHS Trust,23/11/21,Nurse - Band 6 -Agency,Adult City East CMHT - Merlyn Vaz,HCL NURSING,HNSI0000855,837.00
Department of Health,Leicestershire Partnership NHS Trust,23/11/21,Nurse - Band 6 -Agency,Adult County Charnwood CMHT - Loughborough Base,HCL NURSING,HNSI0000855,213.99
Department of Health,Leicestershire Partnership NHS Trust,23/11/21,Nurse - Band 6 -Agency,Adult County West Leicestershire CMHT,HCL NURSING,HNSI0000855,2139.93
Department of Health,Leicestershire Partnership NHS Trust,23/11/21,NURSE - BAND 2 - AGENCY,Agnes Unit Management,HCL NURSING,HNSI0000855,17245.49
Department of Health,Leicestershire Partnership NHS Trust,23/11/21,NURSE - BAND 5 - AGENCY,Agnes Unit Management,HCL NURSING,HNSI0000855,15265.21
Department of Health,Leicestershire Partnership NHS Trust,23/11/21,NURSE - BAND 2 - AGENCY,Ashby Ward (Bradgate Unit),HCL NURSING,HNSI0000855,808.46
Department of Health,Leicestershire Partnership NHS Trust,23/11/21,NURSE - BAND 5 - AGENCY,Ashby Ward (Bradgate Unit),HCL NURSING,HNSI0000855,4392.72
Department of Health,Leicestershire Partnership NHS Trust,23/11/21,NURSE - BAND 2 - AGENCY,Aston Ward (Bradgate Unit),HCL NURSING,HNSI0000855,1428.04
Department of Health,Leicestershire Partnership NHS Trust,23/11/21,NURSE - BAND 5 - AGENCY,Aston Ward (Bradgate Unit),HCL NURSING,HNSI0000855,5380.83
Department of Health,Leicestershire Partnership NHS Trust,23/11/21,NURSE - BAND 2 - AGENCY,Beaumont Ward - Bradgate Unit,HCL NURSING,HNSI0000855,2248.83
Department of Health,Leicestershire Partnership NHS Trust,23/11/21,NURSE - BAND 5 - AGENCY,Beaumont Ward - Bradgate Unit,HCL NURSING,HNSI0000855,4794.89
Department of Health,Leicestershire Partnership NHS Trust,23/11/21,NURSE - BAND 2 - AGENCY,Belvoir Psychiatric Intensive Care Unit,HCL NURSING,HNSI0000855,5069.34
Department of Health,Leicestershire Partnership NHS Trust,23/11/21,NURSE - BAND 5 - AGENCY,Belvoir Psychiatric Intensive Care Unit,HCL NURSING,HNSI0000855,1800.77
Department of Health,Leicestershire Partnership NHS Trust,23/11/21,NURSE - BAND 2 - AGENCY,Cedar (Willows),HCL NURSING,HNSI0000855,461.70
Department of Health,Leicestershire Partnership NHS Trust,23/11/21,NURSE - BAND 5 - AGENCY,Cedar (Willows),HCL NURSING,HNSI0000855,899.08
Department of Health,Leicestershire Partnership NHS Trust,23/11/21,Nurse - Band 6 -Agency,City West CMHT MHSOP,HCL NURSING,HNSI0000855,1046.25
Department of Health,Leicestershire Partnership NHS Trust,23/11/21,NURSE - BAND 2 - AGENCY,Coleman Ward,HCL NURSING,HNSI0000855,2902.49
Department of Health,Leicestershire Partnership NHS Trust,23/11/21,NURSE - BAND 5 - AGENCY,Coleman Ward,HCL NURSING,HNSI0000855,8277.07
Department of Health,Leicestershire Partnership NHS Trust,23/11/21,Nurse - Band 6 -Agency,Crisis Resolution,HCL NURSING,HNSI0000855,983.32
Department of Health,Leicestershire Partnership NHS Trust,23/11/21,NURSE - BAND 2 - AGENCY,Griffin Ward (HPC),HCL NURSING,HNSI0000855,5688.22
Department of Health,Leicestershire Partnership NHS Trust,23/11/21,NURSE - BAND 5 - AGENCY,Griffin Ward (HPC),HCL NURSING,HNSI0000855,3015.14
Department of Health,Leicestershire Partnership NHS Trust,23/11/21,NURSE - BAND 2 - AGENCY,Heather Ward,HCL NURSING,HNSI0000855,2419.71
Department of Health,Leicestershire Partnership NHS Trust,23/11/21,NURSE - BAND 5 - AGENCY,Heather Ward,HCL NURSING,HNSI0000855,2524.49
Department of Health,Leicestershire Partnership NHS Trust,23/11/21,NURSE - BAND 2 - AGENCY,Kirby Ward,HCL NURSING,HNSI0000855,775.59
Department of Health,Leicestershire Partnership NHS Trust,23/11/21,NURSE - BAND 5 - AGENCY,Kirby Ward,HCL NURSING,HNSI0000855,2121.61
Department of Health,Leicestershire Partnership NHS Trust,23/11/21,Nurse - Band 6 -Agency,Mental Health Liaison Team,HCL NURSING,HNSI0000855,1872.95
Department of Health,Leicestershire Partnership NHS Trust,23/11/21,NURSE - BAND 2 - AGENCY,Mill Lodge,HCL NURSING,HNSI0000855,4837.16
Department of Health,Leicestershire Partnership NHS Trust,23/11/21,NURSE - BAND 5 - AGENCY,Mill Lodge,HCL NURSING,HNSI0000855,4243.35
Department of Health,Leicestershire Partnership NHS Trust,23/11/21,NURSE - BAND 2 - AGENCY,Outreach,HCL NURSING,HNSI0000855,1574.04
Department of Health,Leicestershire Partnership NHS Trust,23/11/21,NURSE - BAND 2 - AGENCY,Phoenix Ward (HPC),HCL NURSING,HNSI0000855,2691.27
Department of Health,Leicestershire Partnership NHS Trust,23/11/21,NURSE - BAND 5 - AGENCY,Phoenix Ward (HPC),HCL NURSING,HNSI0000855,3391.21
Department of Health,Leicestershire Partnership NHS Trust,23/11/21,NURSE - BAND 2 - AGENCY,Place Of Safety Assessment Unit,HCL NURSING,HNSI0000855,1462.79
Department of Health,Leicestershire Partnership NHS Trust,23/11/21,NURSE - BAND 5 - AGENCY,Place Of Safety Assessment Unit,HCL NURSING,HNSI0000855,1564.70
Department of Health,Leicestershire Partnership NHS Trust,23/11/21,NURSE - BAND 2 - AGENCY,Stewart House,HCL NURSING,HNSI0000855,297.75
Department of Health,Leicestershire Partnership NHS Trust,23/11/21,NURSE - BAND 5 - AGENCY,Stewart House,HCL NURSING,HNSI0000855,904.80
Department of Health,Leicestershire Partnership NHS Trust,23/11/21,NURSE - BAND 2 - AGENCY,Thornton Ward - Bradgate Unit,HCL NURSING,HNSI0000855,223.59
Department of Health,Leicestershire Partnership NHS Trust,23/11/21,NURSE - BAND 5 - AGENCY,Thornton Ward - Bradgate Unit,HCL NURSING,HNSI0000855,449.54
Department of Health,Leicestershire Partnership NHS Trust,23/11/21,NURSE - BAND 2 - AGENCY,Urgent Care Hub,HCL NURSING,HNSI0000855,176.79
Department of Health,Leicestershire Partnership NHS Trust,23/11/21,NURSE - BAND 2 - AGENCY,Watermead Ward (Bradgate Unit),HCL NURSING,HNSI0000855,2710.55
Department of Health,Leicestershire Partnership NHS Trust,23/11/21,NURSE - BAND 5 - AGENCY,Watermead Ward (Bradgate Unit),HCL NURSING,HNSI0000855,1607.71
Department of Health,Leicestershire Partnership NHS Trust,23/11/21,NURSE - BAND 2 - AGENCY,Welford Ward,HCL NURSING,HNSI0000855,1768.17
Department of Health,Leicestershire Partnership NHS Trust,23/11/21,NURSE - BAND 5 - AGENCY,Welford Ward,HCL NURSING,HNSI0000855,302.60
Department of Health,Leicestershire Partnership NHS Trust,23/11/21,Nurse - Band 6 -Agency,CAMHS HUB / CAP,HCL SOCIAL CARE,HWSI0000909,26.88
Department of Health,Leicestershire Partnership NHS Trust,23/11/21,Nurse - Band 6 -Agency,CAMHS Waiting List Monies,HCL SOCIAL CARE,HWSI0000909,22493.71
Department of Health,Leicestershire Partnership NHS Trust,23/11/21,Nurse - Band 6 -Agency,Crisis Response and Home Treatment,HCL SOCIAL CARE,HWSI0000909,8024.67
Department of Health,Leicestershire Partnership NHS Trust,23/11/21,NURSE - BAND 2 - AGENCY,CAMHS Inpatient Service,HCL NURSING,HNSI0000857,19146.03
Department of Health,Leicestershire Partnership NHS Trust,23/11/21,NURSE - BAND 5 - AGENCY,CAMHS Inpatient Service,HCL NURSING,HNSI0000857,1855.18
Department of Health,Leicestershire Partnership NHS Trust,23/11/21,NURSE - BAND 5 - AGENCY,CAMHS Learning Disabilities and Outreach Team,HCL NURSING,HNSI0000857,705.18
Department of Health,Leicestershire Partnership NHS Trust,23/11/21,NURSE - BAND 2 - AGENCY,CAMHS Outpatients,HCL NURSING,HNSI0000857,3624.31
Department of Health,Leicestershire Partnership NHS Trust,23/11/21,Nurse - Band 6 -Agency,CAMHS Waiting List Monies,HCL NURSING,HNSI0000857,6629.40
Department of Health,Leicestershire Partnership NHS Trust,23/11/21,NURSE - BAND 2 - AGENCY,Crisis Response and Home Treatment,HCL NURSING,HNSI0000857,230.66
Department of Health,Leicestershire Partnership NHS Trust,23/11/21,NURSE - BAND 2 - AGENCY,Langley Ward ED Inpatient Service,HCL NURSING,HNSI0000857,648.98
Department of Health,Leicestershire Partnership NHS Trust,23/11/21,NURSE - BAND 5 - AGENCY,Langley Ward ED Inpatient Service,HCL NURSING,HNSI0000857,1611.45
Department of Health,Leicestershire Partnership NHS Trust,23/11/21,Gas,"Beaumont Leys Health Centre (P94, LPT)",TOTAL GAS & POWER LTD,251585010/21,467.02
Department of Health,Leicestershire Partnership NHS Trust,23/11/21,Gas,"Bradgate Unit (including Glenvale day Unit) (P7, LPT)",TOTAL GAS & POWER LTD,251585010/21,13094.67
Department of Health,Leicestershire Partnership NHS Trust,23/11/21,Gas,Bridge Park Plaza - First Floor (LPT),TOTAL GAS & POWER LTD,251585010/21,904.76
Department of Health,Leicestershire Partnership NHS Trust,23/11/21,Gas,"Bridge Park Road - Units 2 and 3 (P148, LPT)",TOTAL GAS & POWER LTD,251585010/21,176.98
Department of Health,Leicestershire Partnership NHS Trust,23/11/21,Gas,"Coalville Community Hospital (P138, LPT)",TOTAL GAS & POWER LTD,251585010/21,4968.08
Department of Health,Leicestershire Partnership NHS Trust,23/11/21,Gas,"Coalville Health Centre (P121, LPT)",TOTAL GAS & POWER LTD,251585010/21,395.47
Department of Health,Leicestershire Partnership NHS Trust,23/11/21,Gas,"Evington Centre (P6, LPT)",TOTAL GAS & POWER LTD,251585010/21,856.34
Department of Health,Leicestershire Partnership NHS Trust,23/11/21,Gas,"Farm Lodge (P34, LPT)",TOTAL GAS & POWER LTD,251585010/21,113.35
Department of Health,Leicestershire Partnership NHS Trust,23/11/21,Gas,"Feilding Palmer Hospital (Lutterworth) (P131, LPT)",TOTAL GAS & POWER LTD,251585010/21,1034.06
Department of Health,Leicestershire Partnership NHS Trust,23/11/21,Gas,"Frith Cottages 3 & 4 (P36, LPT)",TOTAL GAS & POWER LTD,251585010/21,109.62
Department of Health,Leicestershire Partnership NHS Trust,23/11/21,Gas,HIS,TOTAL GAS & POWER LTD,251585010/21,96.26
Department of Health,Leicestershire Partnership NHS Trust,23/11/21,Gas,"Hawthorne Centre - Coalville (P14, LPT)",TOTAL GAS & POWER LTD,251585010/21,286.81
Department of Health,Leicestershire Partnership NHS Trust,23/11/21,Gas,"Hinckley and Bosworth Community Hospital (Sunnyside) (P133, LPT)",TOTAL GAS & POWER LTD,251585010/21,3906.12
Department of Health,Leicestershire Partnership NHS Trust,23/11/21,Gas,"Hynca Lodge (P33, LPT)",TOTAL GAS & POWER LTD,251585010/21,282.84
Department of Health,Leicestershire Partnership NHS Trust,23/11/21,Gas,"LGH - Gwendolen House (P4, LPT)",TOTAL GAS & POWER LTD,251585010/21,1060.66
Department of Health,Leicestershire Partnership NHS Trust,23/11/21,Gas,"Loughborough Hospital (P136, LPT)",TOTAL GAS & POWER LTD,251585010/21,9136.40
Department of Health,Leicestershire Partnership NHS Trust,23/11/21,Gas,Mawson House (LPT),TOTAL GAS & POWER LTD,251585010/21,316.38
Department of Health,Leicestershire Partnership NHS Trust,23/11/21,Gas,"Mett Centre (P49, LPT)",TOTAL GAS & POWER LTD,251585010/21,222.58
Department of Health,Leicestershire Partnership NHS Trust,23/11/21,Gas,"Narborough Health Centre (P117, LPT)",TOTAL GAS & POWER LTD,251585010/21,322.99
Department of Health,Leicestershire Partnership NHS Trust,23/11/21,Gas,"Neville Centre - LGH (was DSC) (P147, LPT)",TOTAL GAS & POWER LTD,251585010/21,573.80
Department of Health,Leicestershire Partnership NHS Trust,23/11/21,Gas,"OSL House (P54, LPT)",TOTAL GAS & POWER LTD,251585010/21,348.25
Department of Health,Leicestershire Partnership NHS Trust,23/11/21,Gas,"Orchard Resource Centre (P15, LPT)",TOTAL GAS & POWER LTD,251585010/21,464.95
Department of Health,Leicestershire Partnership NHS Trust,23/11/21,Gas,"Rutland Memorial Hospital (P134, LPT)",TOTAL GAS & POWER LTD,251585010/21,1229.33
Department of Health,Leicestershire Partnership NHS Trust,23/11/21,Gas,"Shepshed Health Centre (P123, LPT)",TOTAL GAS & POWER LTD,251585010/21,379.29
Department of Health,Leicestershire Partnership NHS Trust,23/11/21,Gas,"Springfield Road Health Centre (P92, LPT)",TOTAL GAS & POWER LTD,251585010/21,294.42
Department of Health,Leicestershire Partnership NHS Trust,23/11/21,Gas,"Stewart House (P61, LPT)",TOTAL GAS & POWER LTD,251585010/21,1989.15
Department of Health,Leicestershire Partnership NHS Trust,23/11/21,Gas,"Swithland House - London Road 352 (P44, LPT)",TOTAL GAS & POWER LTD,251585010/21,570.71
Department of Health,Leicestershire Partnership NHS Trust,23/11/21,Gas,"The Agnes Unit (AKA Assessment and Treatment Centre) (P85, LPT)",TOTAL GAS & POWER LTD,251585010/21,2066.68
Department of Health,Leicestershire Partnership NHS Trust,23/11/21,Gas,The Beacon,TOTAL GAS & POWER LTD,251585010/21,1030.10
Department of Health,Leicestershire Partnership NHS Trust,23/11/21,Gas,"The Cedars (P19, LPT)",TOTAL GAS & POWER LTD,251585010/21,146.17
Department of Health,Leicestershire Partnership NHS Trust,23/11/21,Gas,"The Grange 1 (P4, LPT)",TOTAL GAS & POWER LTD,251585010/21,195.32
Department of Health,Leicestershire Partnership NHS Trust,23/11/21,Gas,"The Grange 2 (P41, LPT)",TOTAL GAS & POWER LTD,251585010/21,111.17
Department of Health,Leicestershire Partnership NHS Trust,23/11/21,Gas,"The Willows - Cordelia Close (P22, LPT)",TOTAL GAS & POWER LTD,251585010/21,2204.79
Department of Health,Leicestershire Partnership NHS Trust,23/11/21,Gas,"Valentine Centre (P3, LPT)",TOTAL GAS & POWER LTD,251585010/21,1308.10
Department of Health,Leicestershire Partnership NHS Trust,23/11/21,Gas,"Westcotes Group -Westcotes House (P78, LPT)",TOTAL GAS & POWER LTD,251585010/21,741.79
Department of Health,Leicestershire Partnership NHS Trust,23/11/21,Gas,"Winstanley Drive Health Centre (P8, LPT)",TOTAL GAS & POWER LTD,251585010/21,391.86
Department of Health,Leicestershire Partnership NHS Trust,23/11/21,Crs_NHS_LT1y -Resus Inventory Supplied.,Balance Sheet Collection,SUPPLY CHAIN CO LTD,1122155009,37694.08
Department of Health,Leicestershire Partnership NHS Trust,23/11/21,Computer Software,HIS,SOFTCAT PLC,INV03242684,25039.54
Department of Health,Leicestershire Partnership NHS Trust,25/11/21,Leased / Hired Vehicles,Autism,AUTOMOTIVE LEASING LTD,509204272,638.96
Department of Health,Leicestershire Partnership NHS Trust,25/11/21,Prep_ LT1y -Prepayments Lease Cars,Balance Sheet Collection,AUTOMOTIVE LEASING LTD,509204272,40293.41
Department of Health,Leicestershire Partnership NHS Trust,25/11/21,Trade_Drs_LT1y -Lease Cars Invoicing Contrl Ac.,Balance Sheet Collection,AUTOMOTIVE LEASING LTD,509204272,809.00
Department of Health,Leicestershire Partnership NHS Trust,25/11/21,VAT_Drs _ LT1y -VAT Contracted Out Services Input Tax,Balance Sheet Collection,AUTOMOTIVE LEASING LTD,509204272,1096.15
Department of Health,Leicestershire Partnership NHS Trust,25/11/21,Leased / Hired Vehicles,CHS Inpatient Management,AUTOMOTIVE LEASING LTD,509204272,10.00
Department of Health,Leicestershire Partnership NHS Trust,25/11/21,Leased / Hired Vehicles,COVID 19,AUTOMOTIVE LEASING LTD,509204272,472.36
Department of Health,Leicestershire Partnership NHS Trust,25/11/21,Leased / Hired Vehicles,Children's Occupational Therapy,AUTOMOTIVE LEASING LTD,509204272,658.96
Department of Health,Leicestershire Partnership NHS Trust,25/11/21,Leased / Hired Vehicles,City Planned Care - East,AUTOMOTIVE LEASING LTD,509204272,15.00
Department of Health,Leicestershire Partnership NHS Trust,25/11/21,Leased / Hired Vehicles,Countywide Falls Service,AUTOMOTIVE LEASING LTD,509204272,10.00
Department of Health,Leicestershire Partnership NHS Trust,25/11/21,Leased / Hired Vehicles,East Planned Care - Blaby/Lutterworth,AUTOMOTIVE LEASING LTD,509204272,10.00
Department of Health,Leicestershire Partnership NHS Trust,25/11/21,Leased / Hired Vehicles,"East Planned Care - Melton,Syston,Rutland",AUTOMOTIVE LEASING LTD,509204272,10.00
Department of Health,Leicestershire Partnership NHS Trust,25/11/21,Leased / Hired Vehicles,Lead Nurse & Governance Team,AUTOMOTIVE LEASING LTD,509204272,345.00
Department of Health,Leicestershire Partnership NHS Trust,25/11/21,Leased / Hired Vehicles,School Age Immunisation and Vaccinations,AUTOMOTIVE LEASING LTD,509204272,8666.94
Department of Health,Leicestershire Partnership NHS Trust,25/11/21,Leased / Hired Vehicles,West Planned Care  - Charnwood Hub,AUTOMOTIVE LEASING LTD,509204272,5.00
Department of Health,Leicestershire Partnership NHS Trust,25/11/21,WIP Project Not in BS - Information Technology,Work in Progress,DELL COMPUTERS,7402761728,29677.48
Department of Health,Leicestershire Partnership NHS Trust,29/11/21,Services / Recharges from NHS Trusts,Inter Unit I & E Distribution,UHL NHS TRUST (RWE),L0255267,144923.71
Department of Health,Leicestershire Partnership NHS Trust,29/11/21,NURSE - BAND 2 - AGENCY,Beechwood Ward,HCL NURSING,HNSI0000856,4614.00
Department of Health,Leicestershire Partnership NHS Trust,29/11/21,NURSE - BAND 5 - AGENCY,Beechwood Ward,HCL NURSING,HNSI0000856,532.35
Department of Health,Leicestershire Partnership NHS Trust,29/11/21,NURSE - BAND 3 - AGENCY,CHS Phlebotomy Service,HCL NURSING,HNSI0000856,257.60
Department of Health,Leicestershire Partnership NHS Trust,29/11/21,NURSE - BAND 5 - AGENCY,City Planned Care - East,HCL NURSING,HNSI0000856,10282.41
Department of Health,Leicestershire Partnership NHS Trust,29/11/21,NURSE - BAND 5 - AGENCY,City Planned Care - West,HCL NURSING,HNSI0000856,14585.40
Department of Health,Leicestershire Partnership NHS Trust,29/11/21,NURSE - BAND 2 - AGENCY,Clarendon Ward,HCL NURSING,HNSI0000856,2174.48
Department of Health,Leicestershire Partnership NHS Trust,29/11/21,NURSE - BAND 5 - AGENCY,Clarendon Ward,HCL NURSING,HNSI0000856,5515.91
Department of Health,Leicestershire Partnership NHS Trust,29/11/21,NURSE - BAND 2 - AGENCY,Coalville Snibston Ward,HCL NURSING,HNSI0000856,3576.69
Department of Health,Leicestershire Partnership NHS Trust,29/11/21,NURSE - BAND 5 - AGENCY,Coalville Snibston Ward,HCL NURSING,HNSI0000856,1029.70
Department of Health,Leicestershire Partnership NHS Trust,29/11/21,NURSE - BAND 2 - AGENCY,Coalville Ward 2,HCL NURSING,HNSI0000856,297.75
Department of Health,Leicestershire Partnership NHS Trust,29/11/21,NURSE - BAND 5 - AGENCY,Coalville Ward 2,HCL NURSING,HNSI0000856,789.52
Department of Health,Leicestershire Partnership NHS Trust,29/11/21,NURSE - BAND 2 - AGENCY,Dalgliesh Ward,HCL NURSING,HNSI0000856,1319.77
Department of Health,Leicestershire Partnership NHS Trust,29/11/21,NURSE - BAND 5 - AGENCY,Dalgliesh Ward,HCL NURSING,HNSI0000856,2899.00
Department of Health,Leicestershire Partnership NHS Trust,29/11/21,NURSE - BAND 2 - AGENCY,H&B Comm Hosp East Ward,HCL NURSING,HNSI0000856,2969.12
Department of Health,Leicestershire Partnership NHS Trust,29/11/21,NURSE - BAND 5 - AGENCY,H&B Comm Hosp East Ward,HCL NURSING,HNSI0000856,7448.96
Department of Health,Leicestershire Partnership NHS Trust,29/11/21,NURSE - BAND 2 - AGENCY,H&B Comm Hosp North Ward,HCL NURSING,HNSI0000856,1306.73
Department of Health,Leicestershire Partnership NHS Trust,29/11/21,NURSE - BAND 5 - AGENCY,H&B Comm Hosp North Ward,HCL NURSING,HNSI0000856,1185.59
Department of Health,Leicestershire Partnership NHS Trust,29/11/21,NURSE - BAND 2 - AGENCY,Lough Swithland Ward,HCL NURSING,HNSI0000856,639.79
Department of Health,Leicestershire Partnership NHS Trust,29/11/21,NURSE - BAND 5 - AGENCY,Lough Swithland Ward,HCL NURSING,HNSI0000856,2047.06
Department of Health,Leicestershire Partnership NHS Trust,29/11/21,NURSE - BAND 2 - AGENCY,Rutland Ward Nursing,HCL NURSING,HNSI0000856,969.54
Department of Health,Leicestershire Partnership NHS Trust,29/11/21,NURSE - BAND 5 - AGENCY,Rutland Ward Nursing,HCL NURSING,HNSI0000856,1126.00
Department of Health,Leicestershire Partnership NHS Trust,29/11/21,NURSE - BAND 2 - AGENCY,St Lukes Stroke Ward,HCL NURSING,HNSI0000856,1491.30
Department of Health,Leicestershire Partnership NHS Trust,29/11/21,NURSE - BAND 5 - AGENCY,St Lukes Stroke Ward,HCL NURSING,HNSI0000856,600.65
Department of Health,Leicestershire Partnership NHS Trust,29/11/21,NURSE - BAND 2 - AGENCY,St Lukes Ward 3,HCL NURSING,HNSI0000856,1410.75
Department of Health,Leicestershire Partnership NHS Trust,29/11/21,NURSE - BAND 5 - AGENCY,St Lukes Ward 3,HCL NURSING,HNSI0000856,3152.41
Department of Health,Leicestershire Partnership NHS Trust,29/11/21,NURSE - BAND 2 - AGENCY,Wakerley Ward,HCL NURSING,HNSI0000856,2826.44
Department of Health,Leicestershire Partnership NHS Trust,29/11/21,NURSE - BAND 5 - AGENCY,Wakerley Ward,HCL NURSING,HNSI0000856,6152.16
Department of Health,Leicestershire Partnership NHS Trust,29/11/21,Nurse - Band 6 -Agency,AMH - Central Access Point,HCL NURSING,HNSI0000861,5258.09
Department of Health,Leicestershire Partnership NHS Trust,29/11/21,Nurse - Band 6 -Agency,Adult County West Leicestershire CMHT,HCL NURSING,HNSI0000861,1069.97
Department of Health,Leicestershire Partnership NHS Trust,29/11/21,NURSE - BAND 2 - AGENCY,Agnes Unit Management,HCL NURSING,HNSI0000861,24144.91
Department of Health,Leicestershire Partnership NHS Trust,29/11/21,NURSE - BAND 5 - AGENCY,Agnes Unit Management,HCL NURSING,HNSI0000861,16781.87
Department of Health,Leicestershire Partnership NHS Trust,29/11/21,NURSE - BAND 2 - AGENCY,Ashby Ward (Bradgate Unit),HCL NURSING,HNSI0000861,2416.46
Department of Health,Leicestershire Partnership NHS Trust,29/11/21,NURSE - BAND 5 - AGENCY,Ashby Ward (Bradgate Unit),HCL NURSING,HNSI0000861,4265.81
Department of Health,Leicestershire Partnership NHS Trust,29/11/21,NURSE - BAND 2 - AGENCY,Aston Ward (Bradgate Unit),HCL NURSING,HNSI0000861,1950.85
Department of Health,Leicestershire Partnership NHS Trust,29/11/21,NURSE - BAND 5 - AGENCY,Aston Ward (Bradgate Unit),HCL NURSING,HNSI0000861,2969.35
Department of Health,Leicestershire Partnership NHS Trust,29/11/21,NURSE - BAND 2 - AGENCY,Beaumont Ward - Bradgate Unit,HCL NURSING,HNSI0000861,3984.60
Department of Health,Leicestershire Partnership NHS Trust,29/11/21,NURSE - BAND 5 - AGENCY,Beaumont Ward - Bradgate Unit,HCL NURSING,HNSI0000861,3496.94
Department of Health,Leicestershire Partnership NHS Trust,29/11/21,NURSE - BAND 2 - AGENCY,Belvoir Psychiatric Intensive Care Unit,HCL NURSING,HNSI0000861,3352.64
Department of Health,Leicestershire Partnership NHS Trust,29/11/21,NURSE - BAND 5 - AGENCY,Belvoir Psychiatric Intensive Care Unit,HCL NURSING,HNSI0000861,4407.35
Department of Health,Leicestershire Partnership NHS Trust,29/11/21,NURSE - BAND 2 - AGENCY,Cedar (Willows),HCL NURSING,HNSI0000861,1704.89
Department of Health,Leicestershire Partnership NHS Trust,29/11/21,Nurse - Band 6 -Agency,City West CMHT MHSOP,HCL NURSING,HNSI0000861,1046.25
Department of Health,Leicestershire Partnership NHS Trust,29/11/21,NURSE - BAND 2 - AGENCY,Coleman Ward,HCL NURSING,HNSI0000861,3507.11
Department of Health,Leicestershire Partnership NHS Trust,29/11/21,NURSE - BAND 5 - AGENCY,Coleman Ward,HCL NURSING,HNSI0000861,6349.20
Department of Health,Leicestershire Partnership NHS Trust,29/11/21,NURSE - BAND 2 - AGENCY,Griffin Ward (HPC),HCL NURSING,HNSI0000861,11376.62
Department of Health,Leicestershire Partnership NHS Trust,29/11/21,NURSE - BAND 5 - AGENCY,Griffin Ward (HPC),HCL NURSING,HNSI0000861,5913.41
Department of Health,Leicestershire Partnership NHS Trust,29/11/21,NURSE - BAND 2 - AGENCY,Heather Ward,HCL NURSING,HNSI0000861,1813.02
Department of Health,Leicestershire Partnership NHS Trust,29/11/21,NURSE - BAND 5 - AGENCY,Heather Ward,HCL NURSING,HNSI0000861,3981.86
Department of Health,Leicestershire Partnership NHS Trust,29/11/21,NURSE - BAND 2 - AGENCY,Kirby Ward,HCL NURSING,HNSI0000861,1219.71
Department of Health,Leicestershire Partnership NHS Trust,29/11/21,NURSE - BAND 5 - AGENCY,Kirby Ward,HCL NURSING,HNSI0000861,2641.70
Department of Health,Leicestershire Partnership NHS Trust,29/11/21,NURSE - BAND 2 - AGENCY,Maple Ward,HCL NURSING,HNSI0000861,2107.26
Department of Health,Leicestershire Partnership NHS Trust,29/11/21,Nurse - Band 6 -Agency,Mental Health Liaison Team,HCL NURSING,HNSI0000861,1854.12
Department of Health,Leicestershire Partnership NHS Trust,29/11/21,NURSE - BAND 2 - AGENCY,Mill Lodge,HCL NURSING,HNSI0000861,8694.09
Department of Health,Leicestershire Partnership NHS Trust,29/11/21,NURSE - BAND 5 - AGENCY,Mill Lodge,HCL NURSING,HNSI0000861,3915.47
Department of Health,Leicestershire Partnership NHS Trust,29/11/21,NURSE - BAND 2 - AGENCY,Outreach,HCL NURSING,HNSI0000861,1712.62
Department of Health,Leicestershire Partnership NHS Trust,29/11/21,NURSE - BAND 2 - AGENCY,Phoenix Ward (HPC),HCL NURSING,HNSI0000861,1972.01
Department of Health,Leicestershire Partnership NHS Trust,29/11/21,NURSE - BAND 5 - AGENCY,Phoenix Ward (HPC),HCL NURSING,HNSI0000861,3181.75
Department of Health,Leicestershire Partnership NHS Trust,29/11/21,NURSE - BAND 2 - AGENCY,Place Of Safety Assessment Unit,HCL NURSING,HNSI0000861,1316.56
Department of Health,Leicestershire Partnership NHS Trust,29/11/21,NURSE - BAND 5 - AGENCY,Place Of Safety Assessment Unit,HCL NURSING,HNSI0000861,1831.89
Department of Health,Leicestershire Partnership NHS Trust,29/11/21,NURSE - BAND 2 - AGENCY,Stewart House,HCL NURSING,HNSI0000861,614.79
Department of Health,Leicestershire Partnership NHS Trust,29/11/21,NURSE - BAND 2 - AGENCY,Thornton Ward - Bradgate Unit,HCL NURSING,HNSI0000861,343.70
Department of Health,Leicestershire Partnership NHS Trust,29/11/21,NURSE - BAND 5 - AGENCY,Thornton Ward - Bradgate Unit,HCL NURSING,HNSI0000861,525.35
Department of Health,Leicestershire Partnership NHS Trust,29/11/21,NURSE - BAND 2 - AGENCY,Watermead Ward (Bradgate Unit),HCL NURSING,HNSI0000861,2626.23
Department of Health,Leicestershire Partnership NHS Trust,29/11/21,NURSE - BAND 5 - AGENCY,Watermead Ward (Bradgate Unit),HCL NURSING,HNSI0000861,7038.76
Department of Health,Leicestershire Partnership NHS Trust,29/11/21,NURSE - BAND 2 - AGENCY,Welford Ward,HCL NURSING,HNSI0000861,1229.61
Department of Health,Leicestershire Partnership NHS Trust,29/11/21,NURSE - BAND 5 - AGENCY,Welford Ward,HCL NURSING,HNSI0000861,772.25
Department of Health,Leicestershire Partnership NHS Trust,29/11/21,Nurse - Band 6 -Agency,CAMHS HUB / CAP,HCL SOCIAL CARE,HWSI0000928,10646.18
Department of Health,Leicestershire Partnership NHS Trust,29/11/21,Nurse - Band 6 -Agency,CAMHS Learning Disabilities and Outreach Team,HCL SOCIAL CARE,HWSI0000928,801.00
Department of Health,Leicestershire Partnership NHS Trust,29/11/21,Nurse - Band 6 -Agency,CAMHS Waiting List Monies,HCL SOCIAL CARE,HWSI0000928,24584.82
Department of Health,Leicestershire Partnership NHS Trust,29/11/21,Nurse - Band 6 -Agency,Crisis Response and Home Treatment,HCL SOCIAL CARE,HWSI0000928,3259.34
Department of Health,Leicestershire Partnership NHS Trust,29/11/21,NURSE - BAND 2 - AGENCY,CAMHS Inpatient Service,HCL NURSING,HNSI0000863,11728.39
Department of Health,Leicestershire Partnership NHS Trust,29/11/21,NURSE - BAND 5 - AGENCY,CAMHS Inpatient Service,HCL NURSING,HNSI0000863,1938.60
Department of Health,Leicestershire Partnership NHS Trust,29/11/21,NURSE - BAND 2 - AGENCY,CAMHS Outpatients,HCL NURSING,HNSI0000863,4404.38
Department of Health,Leicestershire Partnership NHS Trust,29/11/21,Nurse - Band 6 -Agency,CAMHS Waiting List Monies,HCL NURSING,HNSI0000863,5733.77
Department of Health,Leicestershire Partnership NHS Trust,29/11/21,NURSE - BAND 2 - AGENCY,Crisis Response and Home Treatment,HCL NURSING,HNSI0000863,212.30
Department of Health,Leicestershire Partnership NHS Trust,29/11/21,NURSE - BAND 2 - AGENCY,Langley Ward ED Inpatient Service,HCL NURSING,HNSI0000863,355.98
Department of Health,Leicestershire Partnership NHS Trust,29/11/21,NURSE - BAND 5 - AGENCY,Langley Ward ED Inpatient Service,HCL NURSING,HNSI0000863,1364.54
Department of Health,Leicestershire Partnership NHS Trust,29/11/21,WIP Project Not in BS - Information Technology,Work in Progress,DELL COMPUTERS,7402762953,37800.00
Department of Health,Leicestershire Partnership NHS Trust,29/11/21,Crs_NHS_LT1y -Resus Inventory Supplied.,Balance Sheet Collection,SUPPLY CHAIN CO LTD,1122161579,29748.31
Department of Health,Leicestershire Partnership NHS Trust,29/11/21,Electricity,"Belvoir Intensive Care Unit (P7, LPT)",UHL NHS TRUST (RWE),L0255357,1651.86
Department of Health,Leicestershire Partnership NHS Trust,29/11/21,Electricity,"Bennion Centre (including Forest Grange Day Unit) (P8, LPT)",UHL NHS TRUST (RWE),L0255357,5815.71
Department of Health,Leicestershire Partnership NHS Trust,29/11/21,Electricity,"Bradgate Unit (including Glenvale day Unit) (P7, LPT)",UHL NHS TRUST (RWE),L0255357,15998.22
Department of Health,Leicestershire Partnership NHS Trust,29/11/21,Contract : Premises Security,Estates & Facilities Central,UHL NHS TRUST (RWE),L0255357,2295.52
Department of Health,Leicestershire Partnership NHS Trust,29/11/21,Electricity,"Herschel Prins (P9, LPT)",UHL NHS TRUST (RWE),L0255357,4206.64
Department of Health,Leicestershire Partnership NHS Trust,29/11/21,Electricity,Modular Training Building,UHL NHS TRUST (RWE),L0255357,783.95
Department of Health,Leicestershire Partnership NHS Trust,29/11/21,Electricity,Pharmacy Portacabin,UHL NHS TRUST (RWE),L0255357,1211.02
Department of Health,Leicestershire Partnership NHS Trust,29/11/21,Services / Recharges from NHS Trusts,UHL Expenditure Contract,UHL NHS TRUST (RWE),L0255357,5552.23
